Workbook

Sheet Hárok1
B1: =COLUMN(A1) -> 1 | C1: =COLUMN(B1) -> 2 | D1: 3 | E1: 4 | F1: 5 | G1: 6 | H1: 7 | I1: 8 | J1: 9 | K1: 10 | L1: 11
B2: =ROW(A2) -> 2 | C2: =CHAR(62+$B2+C$1) -> B | D2: =CHAR(62+$B2+D$1) -> C | E2: D | F2: E | G2: F | H2: G | I2: H | J2: I | K2: J | L2: K
B3: 3 | C3: =CHAR(62+$B3+C$1) -> C | D3: D | E3: E | F3: F | G3: G | H3: H | I3: I | J3: J | K3: K | L3: L
B4: 4 | C4: D | D4: E | E4: F | F4: G | G4: H | H4: I | I4: J | J4: K | K4: L | L4: M
B5: 5 | C5: E | D5: F | E5: G | F5: H | G5: I | H5: J | I5: K | J5: L | K5: M | L5: N
B6: 6 | C6: F | D6: G | E6: H | F6: I | G6: J | H6: K | I6: L | J6: M | K6: N | L6: O
B7: 7 | C7: G | D7: H | E7: I | F7: J | G7: K | H7: L | I7: M | J7: N | K7: O | L7: P
B8: 8 | C8: H | D8: I | E8: J | F8: K | G8: L | H8: M | I8: N | J8: O | K8: P | L8: Q
B9: 9 | C9: I | D9: J | E9: K | F9: L | G9: M | H9: N | I9: O | J9: P | K9: Q | L9: R
B10: 10 | C10: J | D10: K | E10: L | F10: M | G10: N | H10: O | I10: P | J10: Q | K10: R | L10: S
B11: 11 | C11: K | D11: L | E11: M | F11: N | G11: O | H11: P | I11: Q | J11: R | K11: S | L11: T
B12: 12 | C12: L | D12: M | E12: N | F12: O | G12: P | H12: Q | I12: R | J12: S | K12: T | L12: U
B13: 13 | C13: M | D13: N | E13: O | F13: P | G13: Q | H13: R | I13: S | J13: T | K13: U | L13: V
B14: 14 | C14: N | D14: O | E14: P | F14: Q | G14: R | H14: S | I14: T | J14: U | K14: V | L14: W
B15: 15 | C15: O | D15: P | E15: Q | F15: R | G15: S | H15: T | I15: U | J15: V | K15: W | L15: X
B16: 16 | C16: P | D16: Q | E16: R | F16: S | G16: T | H16: U | I16: V | J16: W | K16: X | L16: Y
B17: 17 | C17: Q | D17: R | E17: S | F17: T | G17: U | H17: V | I17: W | J17: X | K17: Y | L17: Z
B18: 18 | C18: R | D18: S | E18: T | F18: U | G18: V | H18: W | I18: X | J18: Y | K18: Z | L18: [
B19: 19 | C19: S | D19: T | E19: U | F19: V | G19: W | H19: X | I19: Y | J19: Z | K19: [ | L19: \
B20: 20 | C20: T | D20: U | E20: V | F20: W | G20: X | H20: Y | I20: Z | J20: [ | K20: \ | L20: ]
B21: 21 | C21: U | D21: V | E21: W | F21: X | G21: Y | H21: Z | I21: [ | J21: \ | K21: ] | L21: ^
B22: 22 | C22: V | D22: W | E22: X | F22: Y | G22: Z | H22: [ | I22: \ | J22: ] | K22: ^ | L22: _
B23: 23 | C23: W | D23: X | E23: Y | F23: Z | G23: [ | H23: \ | I23: ] | J23: ^ | K23: _ | L23: `
B24: 24 | C24: X | D24: Y | E24: Z | F24: =CHAR(62+$B24+F$1) -> [ | G24: \ | H24: ] | I24: ^ | J24: _ | K24: ` | L24: a
B25: 25 | C25: Y | D25: Z | E25: [ | F25: \ | G25: ] | H25: ^ | I25: _ | J25: ` | K25: a | L25: b
B26: 26 | C26: Z | D26: [ | E26: \ | F26: ] | G26: ^ | H26: _ | I26: ` | J26: a | K26: b | L26: c
B27: 27 | C27: [ | D27: \ | E27: ] | F27: ^ | G27: _ | H27: ` | I27: a | J27: b | K27: c | L27: d
B28: 28 | C28: \ | D28: ] | E28: ^ | F28: _ | G28: ` | H28: a | I28: b | J28: c | K28: d | L28: e
B29: 29 | C29: ] | D29: ^ | E29: _ | F29: ` | G29: a | H29: b | I29: c | J29: d | K29: e | L29: f
B30: 30 | C30: ^ | D30: _ | E30: ` | F30: a | G30: b | H30: c | I30: d | J30: e | K30: f | L30: g
B31: 31 | C31: _ | D31: ` | E31: a | F31: b | G31: c | H31: d | I31: e | J31: f | K31: g | L31: h
B32: 32 | C32: ` | D32: a | E32: b | F32: c | G32: d | H32: e | I32: f | J32: g | K32: h | L32: i
B33: 33 | C33: a | D33: b | E33: c | F33: d | G33: e | H33: f | I33: g | J33: h | K33: i | L33: j
B34: 34 | C34: b | D34: c | E34: d | F34: e | G34: f | H34: g | I34: h | J34: i | K34: j | L34: k
B35: 35 | C35: c | D35: d | E35: e | F35: f | G35: g | H35: h | I35: i | J35: j | K35: k | L35: l
B36: 36 | C36: d | D36: e | E36: f | F36: g | G36: h | H36: i | I36: j | J36: k | K36: l | L36: m
B37: 37 | C37: e | D37: f | E37: g | F37: h | G37: i | H37: j | I37: k | J37: l | K37: m | L37: n
B38: 38 | C38: f | D38: g | E38: h | F38: i | G38: j | H38: k | I38: l | J38: m | K38: n | L38: o
B39: 39 | C39: g | D39: h | E39: i | F39: j | G39: k | H39: l | I39: m | J39: n | K39: o | L39: p
B40: 40 | C40: h | D40: =CHAR(62+$B40+D$1) -> i | E40: j | F40: k | G40: l | H40: m | I40: n | J40: o | K40: p | L40: q
B41: 41 | C41: i | D41: j | E41: k | F41: l | G41: m | H41: n | I41: o | J41: p | K41: q | L41: r
B42: 42 | C42: j | D42: k | E42: l | F42: m | G42: n | H42: o | I42: p | J42: q | K42: r | L42: s
B43: 43 | C43: k | D43: l | E43: m | F43: n | G43: o | H43: p | I43: q | J43: r | K43: s | L43: t
B44: 44 | C44: l | D44: m | E44: n | F44: o | G44: p | H44: q | I44: r | J44: s | K44: t | L44: u
B45: 45 | C45: m | D45: n | E45: o | F45: p | G45: q | H45: r | I45: s | J45: t | K45: u | L45: v
B46: 46 | C46: n | D46: o | E46: p | F46: q | G46: r | H46: s | I46: t | J46: u | K46: v | L46: w
B47: 47 | C47: o | D47: p | E47: q | F47: r | G47: s | H47: t | I47: u | J47: v | K47: w | L47: x
B48: 48 | C48: p | D48: q | E48: r | F48: s | G48: t | H48: u | I48: v | J48: w | K48: x | L48: y
B49: 49 | C49: q | D49: r | E49: s | F49: t | G49: u | H49: v | I49: w | J49: x | K49: y | L49: z
B50: 50 | C50: r | D50: s | E50: t | F50: u | G50: v | H50: w | I50: x | J50: y | K50: z | L50: {
B51: 51 | C51: s | D51: t | E51: u | F51: v | G51: w | H51: x | I51: y | J51: z | K51: { | L51: |
B52: 52 | C52: t | D52: u | E52: v | F52: w | G52: x | H52: y | I52: z | J52: { | K52: | | L52: }
B53: 53 | C53: u | D53: v | E53: w | F53: x | G53: y | H53: z | I53: { | J53: | | K53: } | L53: ~
B54: 54 | C54: v | D54: w | E54: x | F54: y | G54: z | H54: { | I54: | | J54: } | K54: ~ | L54: 
B55: 55 | C55: w | D55: x | E55: y | F55: z | G55: { | H55: | | I55: } | J55: ~ | K55:  | L55: €
B56: 56 | C56: x | D56: =CHAR(62+$B56+D$1) -> y | E56: z | F56: { | G56: | | H56: } | I56: ~ | J56:  | K56: € | L56: 
B57: 57 | C57: y | D57: z | E57: { | F57: | | G57: } | H57: ~ | I57:  | J57: € | K57:  | L57: ‚
B58: 58 | C58: z | D58: { | E58: | | F58: } | G58: ~ | H58:  | I58: € | J58:  | K58: ‚ | L58: 
B59: 59 | C59: { | D59: | | E59: } | F59: ~ | G59:  | H59: € | I59:  | J59: ‚ | K59:  | L59: „
B60: 60 | C60: | | D60: } | E60: ~ | F60:  | G60: € | H60:  | I60: ‚ | J60:  | K60: „ | L60: …
B61: 61 | C61: } | D61: ~ | E61:  | F61: € | G61:  | H61: ‚ | I61:  | J61: „ | K61: … | L61: †
B62: 62 | C62: ~ | D62:  | E62: € | F62:  | G62: ‚ | H62:  | I62: „ | J62: … | K62: † | L62: ‡
B63: 63 | C63:  | D63: € | E63:  | F63: ‚ | G63:  | H63: „ | I63: … | J63: † | K63: ‡ | L63: 
B64: 64 | C64: € | D64:  | E64: ‚ | F64:  | G64: „ | H64: … | I64: † | J64: ‡ | K64:  | L64: ‰
B65: 65 | C65:  | D65: ‚ | E65:  | F65: „ | G65: … | H65: † | I65: ‡ | J65:  | K65: ‰ | L65: Š
B66: =ROW(A66) -> 66 | C66: ‚ | D66:  | E66: „ | F66: … | G66: † | H66: ‡ | I66:  | J66: ‰ | K66: Š | L66: ‹
B67: 67 | C67: =CHAR(62+$B67+C$1) ->  | D67: „ | E67: … | F67: † | G67: ‡ | H67:  | I67: ‰ | J67: Š | K67: ‹ | L67: Ś
B68: 68 | C68: „ | D68: … | E68: † | F68: ‡ | G68:  | H68: ‰ | I68: Š | J68: ‹ | K68: Ś | L68: Ť
B69: 69 | C69: … | D69: † | E69: ‡ | F69:  | G69: ‰ | H69: Š | I69: ‹ | J69: Ś | K69: Ť | L69: Ž
B70: 70 | C70: † | D70: ‡ | E70:  | F70: ‰ | G70: Š | H70: ‹ | I70: Ś | J70: Ť | K70: Ž | L70: Ź
B71: 71 | C71: ‡ | D71:  | E71: ‰ | F71: Š | G71: ‹ | H71: Ś | I71: Ť | J71: Ž | K71: Ź | L71: 
B72: 72 | C72:  | D72: ‰ | E72: Š | F72: ‹ | G72: Ś | H72: Ť | I72: Ž | J72: Ź | K72:  | L72: ‘
B73: 73 | C73: ‰ | D73: Š | E73: ‹ | F73: Ś | G73: Ť | H73: Ž | I73: Ź | J73:  | K73: ‘ | L73: ’
B74: 74 | C74: Š | D74: ‹ | E74: Ś | F74: Ť | G74: Ž | H74: Ź | I74:  | J74: ‘ | K74: ’ | L74: “
B75: 75 | C75: ‹ | D75: Ś | E75: Ť | F75: Ž | G75: Ź | H75:  | I75: ‘ | J75: ’ | K75: “ | L75: ”
B76: 76 | C76: Ś | D76: Ť | E76: Ž | F76: Ź | G76:  | H76: ‘ | I76: ’ | J76: “ | K76: ” | L76: •
B77: 77 | C77: Ť | D77: Ž | E77: Ź | F77:  | G77: ‘ | H77: ’ | I77: “ | J77: ” | K77: • | L77: –
B78: 78 | C78: Ž | D78: Ź | E78:  | F78: ‘ | G78: ’ | H78: “ | I78: ” | J78: • | K78: – | L78: —
B79: 79 | C79: Ź | D79:  | E79: ‘ | F79: ’ | G79: “ | H79: ” | I79: • | J79: – | K79: — | L79: 
B80: 80 | C80:  | D80: ‘ | E80: ’ | F80: “ | G80: ” | H80: • | I80: – | J80: — | K80:  | L80: ™
B81: 81 | C81: ‘ | D81: ’ | E81: “ | F81: ” | G81: • | H81: – | I81: — | J81:  | K81: ™ | L81: š
B82: 82 | C82: ’ | D82: “ | E82: ” | F82: • | G82: – | H82: — | I82:  | J82: ™ | K82: š | L82: ›
B83: 83 | C83: “ | D83: ” | E83: • | F83: – | G83: — | H83:  | I83: ™ | J83: š | K83: › | L83: ś
B84: 84 | C84: ” | D84: • | E84: – | F84: — | G84:  | H84: ™ | I84: š | J84: › | K84: ś | L84: ť
B85: 85 | C85: • | D85: – | E85: — | F85:  | G85: ™ | H85: š | I85: › | J85: ś | K85: ť | L85: ž
B86: 86 | C86: – | D86: — | E86:  | F86: ™ | G86: š | H86: › | I86: ś | J86: ť | K86: ž | L86: ź
B87: 87 | C87: — | D87:  | E87: ™ | F87: š | G87: › | H87: ś | I87: ť | J87: ž | K87: ź
B88: 88 | C88:  | D88: ™ | E88: š | F88: =CHAR(62+$B88+F$1) -> › | G88: ś | H88: ť | I88: ž | J88: ź | L88: ˇ
B89: 89 | C89: ™ | D89: š | E89: › | F89: ś | G89: ť | H89: ž | I89: ź | K89: ˇ | L89: ˘
B90: 90 | C90: š | D90: › | E90: ś | F90: ť | G90: ž | H90: ź | J90: ˇ | K90: ˘ | L90: Ł
B91: 91 | C91: › | D91: ś | E91: ť | F91: ž | G91: ź | I91: ˇ | J91: ˘ | K91: Ł | L91: ¤
B92: 92 | C92: ś | D92: ť | E92: ž | F92: ź | H92: ˇ | I92: ˘ | J92: Ł | K92: ¤ | L92: Ą
B93: 93 | C93: ť | D93: ž | E93: ź | G93: ˇ | H93: ˘ | I93: Ł | J93: ¤ | K93: Ą | L93: ¦
B94: 94 | C94: ž | D94: ź | F94: ˇ | G94: ˘ | H94: Ł | I94: ¤ | J94: Ą | K94: ¦ | L94: §
B95: 95 | C95: ź | E95: ˇ | F95: ˘ | G95: Ł | H95: ¤ | I95: Ą | J95: ¦ | K95: § | L95: ¨
B96: 96 | D96: ˇ | E96: ˘ | F96: Ł | G96: ¤ | H96: Ą | I96: ¦ | J96: § | K96: ¨ | L96: ©
B97: 97 | C97: ˇ | D97: ˘ | E97: Ł | F97: ¤ | G97: Ą | H97: ¦ | I97: § | J97: ¨ | K97: © | L97: Ş
B98: 98 | C98: ˘ | D98: Ł | E98: ¤ | F98: Ą | G98: ¦ | H98: § | I98: ¨ | J98: © | K98: Ş | L98: «
B99: 99 | C99: Ł | D99: ¤ | E99: Ą | F99: ¦ | G99: § | H99: ¨ | I99: © | J99: Ş | K99: « | L99: ¬
B100: 100 | C100: ¤ | D100: Ą | E100: ¦ | F100: § | G100: ¨ | H100: © | I100: Ş | J100: « | K100: ¬ | L100: ­
B101: 101 | C101: Ą | D101: ¦ | E101: § | F101: ¨ | G101: © | H101: Ş | I101: « | J101: ¬ | K101: ­ | L101: ®
B102: 102 | C102: ¦ | D102: § | E102: ¨ | F102: © | G102: Ş | H102: « | I102: ¬ | J102: ­ | K102: ® | L102: Ż
B103: 103 | C103: § | D103: ¨ | E103: © | F103: Ş | G103: « | H103: ¬ | I103: ­ | J103: ® | K103: Ż | L103: °
B104: 104 | C104: ¨ | D104: =CHAR(62+$B104+D$1) -> © | E104: Ş | F104: « | G104: ¬ | H104: ­ | I104: ® | J104: Ż | K104: ° | L104: ±
B105: 105 | C105: © | D105: Ş | E105: « | F105: ¬ | G105: ­ | H105: ® | I105: Ż | J105: ° | K105: ± | L105: ˛
B106: 106 | C106: Ş | D106: « | E106: ¬ | F106: ­ | G106: ® | H106: Ż | I106: ° | J106: ± | K106: ˛ | L106: ł
B107: 107 | C107: « | D107: ¬ | E107: ­ | F107: ® | G107: Ż | H107: ° | I107: ± | J107: ˛ | K107: ł | L107: ´
B108: 108 | C108: ¬ | D108: ­ | E108: ® | F108: Ż | G108: ° | H108: ± | I108: ˛ | J108: ł | K108: ´ | L108: µ
B109: 109 | C109: ­ | D109: ® | E109: Ż | F109: ° | G109: ± | H109: ˛ | I109: ł | J109: ´ | K109: µ | L109: ¶
B110: 110 | C110: ® | D110: Ż | E110: ° | F110: ± | G110: ˛ | H110: ł | I110: ´ | J110: µ | K110: ¶ | L110: ·
B111: 111 | C111: Ż | D111: ° | E111: ± | F111: ˛ | G111: ł | H111: ´ | I111: µ | J111: ¶ | K111: · | L111: ¸
B112: 112 | C112: ° | D112: ± | E112: ˛ | F112: ł | G112: ´ | H112: µ | I112: ¶ | J112: · | K112: ¸ | L112: ą
B113: 113 | C113: ± | D113: ˛ | E113: ł | F113: ´ | G113: µ | H113: ¶ | I113: · | J113: ¸ | K113: ą | L113: ş
B114: 114 | C114: ˛ | D114: ł | E114: ´ | F114: µ | G114: ¶ | H114: · | I114: ¸ | J114: ą | K114: ş | L114: »
B115: 115 | C115: ł | D115: ´ | E115: µ | F115: ¶ | G115: · | H115: ¸ | I115: ą | J115: ş | K115: » | L115: Ľ
B116: 116 | C116: ´ | D116: µ | E116: ¶ | F116: · | G116: ¸ | H116: ą | I116: ş | J116: » | K116: Ľ | L116: ˝
B117: 117 | C117: µ | D117: ¶ | E117: · | F117: ¸ | G117: ą | H117: ş | I117: » | J117: Ľ | K117: ˝ | L117: ľ
B118: 118 | C118: ¶ | D118: · | E118: ¸ | F118: ą | G118: ş | H118: » | I118: Ľ | J118: ˝ | K118: ľ | L118: ż
B119: 119 | C119: · | D119: ¸ | E119: ą | F119: ş | G119: » | H119: Ľ | I119: ˝ | J119: ľ | K119: ż | L119: Ŕ
B120: 120 | C120: ¸ | D120: =CHAR(62+$B120+D$1) -> ą | E120: ş | F120: » | G120: Ľ | H120: ˝ | I120: ľ | J120: ż | K120: Ŕ | L120: Á
B121: 121 | C121: ą | D121: ş | E121: » | F121: Ľ | G121: ˝ | H121: ľ | I121: ż | J121: Ŕ | K121: Á | L121: Â
B122: 122 | C122: ş | D122: » | E122: Ľ | F122: ˝ | G122: ľ | H122: ż | I122: Ŕ | J122: Á | K122: Â | L122: Ă
B123: 123 | C123: » | D123: Ľ | E123: ˝ | F123: ľ | G123: ż | H123: Ŕ | I123: Á | J123: Â | K123: Ă | L123: Ä
B124: 124 | C124: Ľ | D124: ˝ | E124: ľ | F124: ż | G124: Ŕ | H124: Á | I124: Â | J124: Ă | K124: Ä | L124: Ĺ
B125: 125 | C125: ˝ | D125: ľ | E125: ż | F125: Ŕ | G125: Á | H125: Â | I125: Ă | J125: Ä | K125: Ĺ | L125: Ć
B126: 126 | C126: ľ | D126: ż | E126: Ŕ | F126: Á | G126: Â | H126: Ă | I126: Ä | J126: Ĺ | K126: Ć | L126: Ç
B127: 127 | C127: ż | D127: Ŕ | E127: Á | F127: Â | G127: Ă | H127: Ä | I127: Ĺ | J127: Ć | K127: Ç | L127: Č
B128: 128 | C128: Ŕ | D128: Á | E128: Â | F128: Ă | G128: Ä | H128: Ĺ | I128: Ć | J128: Ç | K128: Č | L128: É
B129: 129 | C129: Á | D129: Â | E129: Ă | F129: Ä | G129: Ĺ | H129: Ć | I129: Ç | J129: Č | K129: É | L129: Ę
B130: =ROW(A130) -> 130 | C130: Â | D130: Ă | E130: Ä | F130: Ĺ | G130: Ć | H130: Ç | I130: Č | J130: É | K130: Ę | L130: Ë
B131: 131 | C131: =CHAR(62+$B131+C$1) -> Ă | D131: Ä | E131: Ĺ | F131: Ć | G131: Ç | H131: Č | I131: É | J131: Ę | K131: Ë | L131: Ě
B132: 132 | C132: Ä | D132: Ĺ | E132: Ć | F132: Ç | G132: Č | H132: É | I132: Ę | J132: Ë | K132: Ě | L132: Í
B133: 133 | C133: Ĺ | D133: Ć | E133: Ç | F133: Č | G133: É | H133: Ę | I133: Ë | J133: Ě | K133: Í | L133: Î
B134: 134 | C134: Ć | D134: Ç | E134: Č | F134: É | G134: Ę | H134: Ë | I134: Ě | J134: Í | K134: Î | L134: Ď
B135: 135 | C135: Ç | D135: Č | E135: É | F135: Ę | G135: Ë | H135: Ě | I135: Í | J135: Î | K135: Ď | L135: Đ
B136: 136 | C136: Č | D136: É | E136: Ę | F136: Ë | G136: Ě | H136: Í | I136: Î | J136: Ď | K136: Đ | L136: Ń
B137: 137 | C137: É | D137: Ę | E137: Ë | F137: Ě | G137: Í | H137: Î | I137: Ď | J137: Đ | K137: Ń | L137: Ň
B138: 138 | C138: Ę | D138: Ë | E138: Ě | F138: Í | G138: Î | H138: Ď | I138: Đ | J138: Ń | K138: Ň | L138: Ó
B139: 139 | C139: Ë | D139: Ě | E139: Í | F139: Î | G139: Ď | H139: Đ | I139: Ń | J139: Ň | K139: Ó | L139: Ô
B140: 140 | C140: Ě | D140: Í | E140: Î | F140: Ď | G140: Đ | H140: Ń | I140: Ň | J140: Ó | K140: Ô | L140: Ő
B141: 141 | C141: Í | D141: Î | E141: Ď | F141: Đ | G141: Ń | H141: Ň | I141: Ó | J141: Ô | K141: Ő | L141: Ö
B142: 142 | C142: Î | D142: Ď | E142: Đ | F142: Ń | G142: Ň | H142: Ó | I142: Ô | J142: Ő | K142: Ö | L142: ×
B143: 143 | C143: Ď | D143: Đ | E143: Ń | F143: Ň | G143: Ó | H143: Ô | I143: Ő | J143: Ö | K143: × | L143: Ř
B144: 144 | C144: Đ | D144: Ń | E144: Ň | F144: Ó | G144: Ô | H144: Ő | I144: Ö | J144: × | K144: Ř | L144: Ů
B145: 145 | C145: Ń | D145: Ň | E145: Ó | F145: Ô | G145: Ő | H145: Ö | I145: × | J145: Ř | K145: Ů | L145: Ú
B146: 146 | C146: Ň | D146: Ó | E146: Ô | F146: Ő | G146: Ö | H146: × | I146: Ř | J146: Ů | K146: Ú | L146: Ű

Sheet Hárok2
B1: =COLUMN(A1) -> 1 | C1: =COLUMN(B1) -> 2 | D1: 3 | E1: 4 | F1: 5 | G1: 6 | H1: 7 | I1: 8 | J1: 9 | K1: 10 | L1: 11
B2: =ROW(A2) -> 2 | C2: =(POWER(B2,2)*SQRT(C1))/(B2*C1) -> 1.414213562 | D2: =(POWER(C2,2)*SQRT(D1))/(C2*D1) -> 0.8164965809 | E2: 0.4082482905 | F2: 0.1825741858 | G2: 0.07453559925 | H2: 0.02817180849 | I2: 0.009960238411 | J2: 0.00332007947 | K2: 0.001049901314 | L2: 0.0003165571568
B3: 3 | C3: =(POWER(B3,2)*SQRT(C2))/(B3*C2) -> 2.522689246 | D3: =(POWER(C3,2)*SQRT(D2))/(C3*D2) -> 2.791814577 | E3: =(POWER(D3,2)*SQRT(E2))/(D3*E2) -> 4.369425945 | F3: =(POWER(E3,2)*SQRT(F2))/(E3*F2) -> 10.2259743 | G3: =(POWER(F3,2)*SQRT(G2))/(F3*G2) -> 37.45612305 | H3: =(POWER(G3,2)*SQRT(H2))/(G3*H2) -> 223.159541 | I3: =(POWER(H3,2)*SQRT(I2))/(H3*I2) -> 2236.045273 | J3: =(POWER(I3,2)*SQRT(J2))/(I3*J2) -> 38806.66779 | K3: =(POWER(J3,2)*SQRT(K2))/(J3*K2) -> 1197656.051 | L3: =(POWER(K3,2)*SQRT(L2))/(K3*L2) -> 67314100.2
B4: 4 | C4: 2.518419732 | D4: 1.507248388 | E4: 0.721062046 | F4: 0.2254863664 | G4: 0.03684333005 | H4: 0.00246632978 | I4: 5.21567895e-05 | J4: 2.647632322e-07 | K4: 2.419310541e-10 | L4: 2.948754354e-14
B5: 5 | C5: 3.150691981 | D5: 2.566336103 | E5: 3.022227933 | F5: 6.364540746 | G5: 33.15794699 | H5: 667.6703024 | I5: 92449.94011 | J5: 179670922.2 | K5: 1.155132992e+13 | L5: 6.726864668e+19
B6: 6 | C6: 3.380245759 | D6: 2.110043991 | E6: 1.213746253 | F6: 0.4811099808 | G6: 0.08355078797 | H6: 0.003233475096 | I6: 1.063447864e-05 | J6: 7.933727959e-10 | K6: 2.334324943e-16 | L6: 2.846131523e-26
B7: 7 | C7: 3.807359639 | D7: 2.621067146 | E7: 2.37910821 | F7: 3.429983355 | G7: 11.86633862 | H7: 208.6805522 | I7: 63991.73357 | J7: 2271879136 | K7: 1.486978085e+17 | L7: 8.814081971e+29
B8: 8 | C8: 4.09994505 | D8: 2.532438823 | E8: 1.641843904 | F8: 0.886514531 | G8: 0.2573519657 | H8: 0.01781502767 | I8: 7.04246283e-05 | J8: 1.477515181e-09 | K8: 3.831595619e-18 | L8: 4.081230517e-33
B9: 9 | C9: 4.44481297 | D9: 2.793084084 | E9: 2.179807174 | F9: 2.31512875 | G9: 4.563640266 | H9: 34.1914999 | I9: 4074.326897 | J9: 105996102.2 | K9: 5.415019951e+16 | L9: 8.476264461e+32
B10: 10 | C10: 4.743219844 | D10: 2.838123236 | E10: 1.922304623 | F10: 1.263381858 | G10: 0.5913967515 | H10: 0.1011392802 | I10: 0.00158449883 | J10: 1.539029609e-07 | K10: 6.613737364e-16 | L10: 2.271667138e-32
B11: 11 | C11: 5.050752157 | D11: 2.998060782 | E11: 2.162366617 | F11: 1.923809256 | G11: 2.501626925 | H11: 7.866157058 | I11: 197.613519 | J11: 503724.6043 | K11: 1.958707977e+13 | L11: 1.299563018e+29
B12: 12 | C12: 5.339532288 | D12: 3.083777251 | E12: 2.097096118 | F12: 1.511949659 | G12: 0.9559299312 | H12: 0.3408354455 | I12: 0.02424579492 | J12: 3.416172916e-05 | K12: 7.718892617e-12 | L12: 2.141195525e-26
B13: 13 | C13: 5.625896573 | D13: 3.203688215 | E13: 2.212285004 | F13: 1.799170865 | G13: 1.840176074 | H13: 3.152005764 | I13: 20.24271634 | J13: 3463.369809 | K13: 1246583480 | L13: 8.519089946e+21
B14: 14 | C14: 5.90244792 | D14: 3.297668851 | E14: 2.21710624 | F14: 1.652914157 | G14: 1.218486185 | H14: 0.6863207162 | I14: 0.1525431511 | J14: 0.002592049434 | K14: 7.341462696e-08 | L14: 7.954007471e-19
B15: 15 | C15: 6.174121578 | D15: 3.399943157 | E15: 2.283381111 | F15: 1.776042092 | G15: 1.608951487 | H15: 1.942134913 | I15: 4.972594427 | J15: 97.6700475 | K15: 360470.8086 | L15: 4.041821256e+14
B16: 16 | C16: 6.439207112 | D16: 3.49217956 | E16: 2.311039476 | F16: 1.734126348 | G16: 1.367128264 | H16: 0.9810012578 | I16: 0.4399243943 | J16: 0.04451407419 | K16: 7.41416582e-05 | L16: 3.687854203e-12
B17: 17 | C17: 6.699350875 | D17: 3.584961049 | E17: 2.358200675 | F17: 1.790772395 | G17: 1.531566153 | H17: 1.546325714 | I17: 2.331374036 | J17: 11.05002556 | K17: 1283.311646 | L17: 668259688.2
B18: 18 | C18: 6.954343575 | D18: 3.672940747 | E18: 2.391792736 | F18: 1.787324247 | G18: 1.444227024 | H18: 1.161408441 | I18: 0.7606397205 | J18: 0.2288217797 | K18: 0.006387505564 | L18: 2.470919857e-07
B19: 19 | C19: 7.204859721 | D19: 3.759400271 | E19: 2.430842367 | F19: 1.818256394 | G19: 1.512994642 | H19: 1.403928211 | I19: 1.609738757 | J19: 3.365167772 | K19: 42.10571779 | L19: 84705.52637
B20: 20 | C20: 7.451045766 | D20: 3.842889942 | E20: 2.464787871 | F20: 1.827898121 | G20: 1.486049553 | H20: 1.254182802 | I20: 0.9885147199 | J20: 0.5388647565 | K20: 0.08304418792 | L20: 0.0002853338982
B21: 21 | C21: 7.69326477 | D21: 3.924476257 | E21: 2.499723263 | F21: 1.848910712 | G21: 1.516698624 | H21: 1.354312454 | I21: 1.362157425 | J21: 1.855613023 | K21: 6.439212991 | L21: 381.2028208
B22: 22 | C22: 7.931719389 | D22: 4.003837918 | E22: 2.532389606 | F22: 1.862398242 | G22: 1.512247609 | H22: 1.29946166 | I22: 1.113396417 | J22: 0.8173463238 | K22: 0.3220992535 | L22: 0.01649725417
B23: 23 | C23: 8.166654176 | D23: 4.081369562 | E23: 2.564724144 | F23: 1.879335786 | G23: 1.528244813 | H23: 1.340636981 | I23: 1.270533982 | J23: 1.405345892 | K23: 2.47621511 | L23: 19.27891269
B24: 24 | C24: 8.398256969 | D24: 4.157059095 | E24: 2.595767964 | F24: 1.89349288 | G24: 1.531677072 | H24: 1.322853083 | I24: 1.173595596 | J24: 0.9899809939 | K24: 0.6291188127 | L24: 0.1432819238
B25: 25 | C25: 8.626714576 | D25: 4.231090649 | E25: 2.626149198 | F25: 1.908479756 | G25: 1.542069516 | H25: 1.340751048 | I25: 1.237624533 | J25: 1.243871396 | K25: 1.568227788 | L25: 4.142985783
B26: 26 | C26: 8.852188094 | D26: 4.303526369 | E26: 2.655612905 | F26: 1.922299228 | G26: 1.547993083 | H26: 1.336887748 | I26: 1.20171225 | J26: 1.077488758 | K26: 0.8604154008 | L26: 0.4227186937
B27: 27 | C27: 9.074828942 | D27: 4.374477764 | E27: 2.684378972 | F27: 1.93612473 | G27: 1.556140567 | H27: 1.345864546 | I27: 1.227725026 | J27: 1.182754842 | K27: 1.275089434 | L27: 1.96116855
B28: 28 | C28: 9.294773425 | D28: 4.444016891 | E28: 2.71240032 | F28: 1.949337874 | G28: 1.562653571 | H28: 1.346982744 | I28: 1.215658183 | J28: 1.117800013 | K28: 0.9899056134 | L28: 0.7068647535
B29: 29 | C29: 9.512147895 | D29: 4.512224961 | E29: 2.739768386 | F29: 1.962322076 | G29: 1.56978052 | H29: 1.352564297 | I29: 1.226739022 | J29: 1.160299553 | K29: 1.166200522 | L29: 1.387091365
B30: 30 | C30: 9.727068128 | D30: 4.579168092 | E30: 2.766493542 | F30: 1.974897299 | G30: 1.576249814 | H30: 1.355333237 | I30: 1.22368602 | J30: 1.136017276 | K30: 1.051957805 | L30: 0.8931939773
B31: 31 | C31: 9.93964137 | D31: 4.644911268 | E31: 2.792624808 | F31: 1.987194304 | G31: 1.582806443 | H31: 1.359579994 | I31: 1.229050608 | J31: 1.153127417 | K31: 1.124289457 | L31: 1.18961175
B32: 32 | C32: 10.14996678 | D32: 4.709512021 | E32: 2.818185746 | F32: 1.999168716 | G32: 1.589042608 | H32: 1.362803247 | I32: 1.229272813 | J32: 1.144747299 | K32: 1.079619098 | L32: 0.9898466919
B33: 33 | C33: 10.35813649 | D33: 4.77302462 | E33: 2.843209539 | F33: 2.01087069 | G33: 1.595204525 | H33: 1.36646903 | I33: 1.232468008 | J33: 1.15191608 | K33: 1.108627281 | L33: 1.114298623
B34: 34 | C34: 10.56423619 | D34: 4.835498635 | E34: 2.867720568 | F34: 2.022296169 | G34: 1.601166786 | H34: 1.369735388 | I34: 1.2338116 | J34: 1.149577959 | K34: 1.09180643 | L34: 1.034296014
B35: 35 | C35: 10.76834579 | D35: 4.896980343 | E35: 2.891744679 | F35: 2.033469044 | G35: 1.60701259 | H35: 1.373096123 | I35: 1.236165209 | J35: 1.152941581 | K35: 1.103403808 | L35: 1.084955818
B36: 36 | C36: 10.97053997 | D36: 4.957512567 | E36: 2.915304019 | F36: 2.044396217 | G36: 1.612706844 | H36: 1.376274168 | I36: 1.237846236 | J36: 1.152824106 | K36: 1.097477966 | L36: 1.053634016
B37: 37 | C37: 11.17088863 | D37: 5.017135265 | E37: 2.938420089 | F37: 2.055092386 | G37: 1.618279884 | H37: 1.379434731 | I37: 1.239846174 | J37: 1.154745508 | K37: 1.102270988 | L37: 1.073849663
B38: 38 | C38: 11.36945732 | D38: 5.07588566 | E38: 2.961112369 | F38: 2.065566651 | G38: 1.623724694 | H38: 1.382489423 | I38: 1.241589166 | J38: 1.155406412 | K38: 1.100501364 | L38: 1.061986124
B39: 39 | C39: 11.56630763 | D39: 5.133798561 | E39: 2.983399274 | F39: 2.075829947 | G39: 1.629054355 | H39: 1.385494055 | I39: 1.243413876 | J39: 1.156773478 | K39: 1.10268897 | L39: 1.070024223
B40: 40 | C40: 11.76149753 | D40: 5.190906541 | E40: 3.005297845 | F40: 2.085891111 | G40: 1.63427014 | H40: 1.388422082 | I40: 1.24512702 | J40: 1.157682574 | K40: 1.102460355 | L40: 1.065776589
B41: 41 | C41: 11.95508163 | D41: 5.24724015 | E41: 3.026824085 | F41: 2.095759118 | G41: 1.639379279 | H41: 1.391293273 | I41: 1.246843244 | J41: 1.158823006 | K41: 1.103660801 | L41: 1.069061107
B42: 42 | C42: 12.14711149 | D42: 5.302828076 | E42: 3.047992938 | F42: 2.105441962 | G42: 1.644385178 | H42: 1.394100911 | I42: 1.248499241 | J42: 1.159790984 | K42: 1.103981814 | L42: 1.067728056
B43: 43 | C43: 12.33763582 | D43: 5.357697303 | E43: 3.06881844 | F43: 2.114947338 | G43: 1.649292869 | H43: 1.396852906 | I43: 1.250133907 | J43: 1.16082478 | K43: 1.104805202 | L43: 1.069191219
B44: 44 | C44: 12.52670076 | D44: 5.411873248 | E44: 3.08931376 | F44: 2.124282346 | G44: 1.654106047 | H44: 1.399548688 | I44: 1.251727357 | J44: 1.161786723 | K44: 1.105308612 | L44: 1.068946235
B45: 45 | C45: 12.71434999 | D45: 5.465379885 | E45: 3.10949129 | F45: 2.133453712 | G45: 1.658828736 | H45: 1.402192192 | I45: 1.253293168 | J45: 1.162758353 | K45: 1.105981063 | L45: 1.069719124
B46: 46 | C46: 12.90062498 | D46: 5.518239855 | E46: 3.129362696 | F46: 2.142467728 | G46: 1.663464411 | H46: 1.404784613 | I46: 1.254825702 | J46: 1.163693669 | K46: 1.106534161 | L46: 1.069867379
B47: 47 | C47: 13.08556511 | D47: 5.570474569 | E47: 3.148938982 | F47: 2.151330334 | G47: 1.668016506 | H47: 1.407328469 | I47: 1.256330116 | J47: 1.164620512 | K47: 1.107138675 | L47: 1.070377691
B48: 48 | C48: 13.26920782 | D48: 5.622104298 | E48: 3.168230536 | F48: 2.16004712 | G48: 1.672488164 | H48: 1.409825354 | I48: 1.257805331 | J48: 1.165523982 | K48: 1.107695019 | L48: 1.070660249
B49: 49 | C49: 13.45158877 | D49: 5.673148254 | E49: 3.187247178 | F49: 2.168623366 | G49: 1.676882399 | H49: 1.4122772 | I49: 1.25925369 | J49: 1.166413736 | K49: 1.108262208 | L49: 1.071067113
B50: 50 | C50: 13.63274192 | D50: 5.723624669 | E50: 3.2059982 | F50: 2.177064058 | G50: 1.681202026 | H50: 1.414685593 | I50: 1.260675505 | J50: 1.167285261 | K50: 1.108806441 | L50: 1.071389529
B51: 51 | C51: 13.81269968 | D51: 5.773550861 | E51: 3.224492409 | F51: 2.185373915 | G51: 1.685449725 | H51: 1.417052162 | I51: 1.26207214 | J51: 1.168142107 | K51: 1.10934801 | L51: 1.071751524
B52: 52 | C52: 13.99149298 | D52: 5.822943295 | E52: 3.242738154 | F52: 2.193557404 | G52: 1.689628019 | H52: 1.419378375 | I52: 1.263444282 | J52: 1.16898316 | K52: 1.10987572 | L52: 1.07208025
B53: 53 | C53: 14.16915138 | D53: 5.871817645 | E53: 3.260743363 | F53: 2.201618759 | G53: 1.693739304 | H53: 1.421665661 | I53: 1.264792921 | J53: 1.169809917 | K53: 1.110396601 | L53: 1.072418941
B54: 54 | C54: 14.34570314 | D54: 5.92018884 | E54: 3.278515569 | F54: 2.209561998 | G54: 1.697785848 | H54: 1.423915352 | I54: 1.266118805 | J54: 1.170622345 | K54: 1.110907114 | L54: 1.072742558
B55: 55 | C55: 14.52117535 | D55: 5.968071117 | E55: 3.29606194 | F55: 2.217390939 | G55: 1.701769806 | H55: 1.426128725 | I55: 1.267422749 | J55: 1.171421237 | K55: 1.111409793 | L55: 1.073066073
B56: 56 | C56: 14.6955939 | D56: 6.015478063 | E56: 3.313389298 | F56: 2.225109208 | G56: 1.705693223 | H56: 1.428306985 | I56: 1.268705467 | J56: 1.172206876 | K56: 1.111903648 | L56: 1.073381049
B57: 57 | C57: 14.86898367 | D57: 6.062422655 | E57: 3.330504144 | F57: 2.232720258 | G57: 1.709558044 | H57: 1.43045128 | I57: 1.26996767 | J57: 1.172979799 | K57: 1.112389691 | L57: 1.073692683
B58: 58 | C58: 15.0413685 | D58: 6.108917299 | E58: 3.347412678 | F58: 2.240227377 | G58: 1.713366119 | H58: 1.432562701 | I58: 1.271210018 | J58: 1.173740365 | K58: 1.112867764 | L58: 1.073998231
B59: 59 | C59: 15.21277129 | D59: 6.154973864 | E59: 3.36412082 | F59: 2.247633698 | G59: 1.717119212 | H59: 1.434642286 | I59: 1.272433147 | J59: 1.174489001 | K59: 1.113338359 | L59: 1.07429954
B60: 60 | C60: 15.38321403 | D60: 6.20060371 | E60: 3.380634222 | F60: 2.25494221 | G60: 1.720819 | H60: 1.436691025 | I60: 1.273637659 | J60: 1.175226064 | K60: 1.113801577 | L60: 1.074595787
B61: 61 | C61: 15.55271787 | D61: 6.245817726 | E61: 3.396958289 | F61: 2.262155767 | G61: 1.724467087 | H61: 1.438709862 | I61: 1.274824128 | J61: 1.175951925 | K61: 1.114257723 | L61: 1.074887682
B62: 62 | C62: 15.72130316 | D62: 6.290626348 | E62: 3.41309819 | F62: 2.269277095 | G62: 1.728065002 | H62: 1.440699695 | I62: 1.275993103 | J62: 1.176666918 | K62: 1.114706971 | L62: 1.07517504
B63: 63 | C63: 15.8889895 | D63: 6.335039591 | E63: 3.429058877 | F63: 2.2763088 | G63: 1.731614206 | H63: 1.442661386 | I63: 1.277145108 | J63: 1.177371375 | K63: 1.115149552 | L63: 1.07545818
B64: 64 | C64: 16.05579576 | D64: 6.379067068 | E64: 3.444845091 | F64: 2.283253376 | G64: 1.735116096 | H64: 1.444595756 | I64: 1.278280643 | J64: 1.178065604 | K64: 1.11558565 | L64: 1.075737122
B65: 65 | C65: 16.22174011 | D65: 6.422718016 | E65: 3.460461378 | F65: 2.290113212 | G65: 1.738572008 | H65: 1.446503589 | I65: 1.279400186 | J65: 1.178749907 | K65: 1.116015462 | L65: 1.076012048
B66: =ROW(A66) -> 66 | C66: 16.3868401 | D66: 6.466001312 | E66: 3.475912099 | F66: 2.296890593 | G66: 1.741983221 | H66: 1.448385638 | I66: 1.280504194 | J66: 1.179424566 | K66: 1.116439166 | L66: 1.07628304
B67: 67 | C67: =(POWER(B67,2)*SQRT(C66))/(B67*C66) -> 16.55111266 | D67: =(POWER(C67,2)*SQRT(D66))/(C67*D66) -> 6.508925497 | E67: =(POWER(D67,2)*SQRT(E66))/(D67*E66) -> 3.491201439 | F67: =(POWER(E67,2)*SQRT(F66))/(E67*F66) -> 2.303587713 | G67: =(POWER(F67,2)*SQRT(G66))/(F67*G66) -> 1.745350962 | H67: =(POWER(G67,2)*SQRT(H66))/(G67*H66) -> 1.450242622 | I67: =(POWER(H67,2)*SQRT(I66))/(H67*I66) -> 1.281593105 | J67: =(POWER(I67,2)*SQRT(J66))/(I67*J66) -> 1.180089857 | K67: =(POWER(J67,2)*SQRT(K66))/(J67*K66) -> 1.116856936 | L67: =(POWER(K67,2)*SQRT(L66))/(K67*L66) -> 1.076550228
B68: 68 | C68: 16.71457412 | D68: 6.551498789 | E68: 3.50633342 | F68: 2.310206675 | G68: 1.748676403 | H68: 1.45207523 | I68: 1.282667339 | J68: 1.180746039 | K68: 1.117268938 | L68: 1.076813709
B69: 69 | C69: 16.87724026 | D69: 6.593729102 | E69: 3.521311905 | F69: 2.316749499 | G69: 1.751960672 | H69: 1.453884124 | I69: 1.283727297 | J69: 1.181393365 | K69: 1.11767533 | L69: 1.07707359
B70: 70 | C70: 17.03912636 | D70: 6.635624061 | E70: 3.536140609 | F70: 2.323218123 | G70: 1.75520485 | H70: 1.455669938 | I70: 1.284773367 | J70: 1.182032075 | K70: 1.118076266 | L70: 1.077329967
B71: 71 | C71: 17.20024714 | D71: 6.677191016 | E71: 3.550823108 | F71: 2.32961441 | G71: 1.758409976 | H71: 1.45743328 | I71: 1.285805916 | J71: 1.182662398 | K71: 1.118471893 | L71: 1.077582934
B72: 72 | C72: 17.36061688 | D72: 6.718437057 | E72: 3.565362842 | F72: 2.335940153 | G72: 1.761577046 | H72: 1.459174735 | I72: 1.286825302 | J72: 1.183284558 | K72: 1.118862349 | L72: 1.077832581
B73: 73 | C73: 17.52024938 | D73: 6.759369026 | E73: 3.579763127 | F73: 2.342197075 | G73: 1.764707019 | H73: 1.460894864 | I73: 1.287831865 | J73: 1.183898767 | K73: 1.119247771 | L73: 1.078078995
B74: 74 | C74: 17.67915803 | D74: 6.799993527 | E74: 3.594027155 | F74: 2.348386835 | G74: 1.767800818 | H74: 1.462594208 | I74: 1.288825933 | J74: 1.184505228 | K74: 1.119628289 | L74: 1.07832226
B75: 75 | C75: 17.83735577 | D75: 6.84031694 | E75: 3.608158007 | F75: 2.35451103 | G75: 1.77085933 | H75: 1.464273286 | I75: 1.289807822 | J75: 1.18510414 | K75: 1.120004026 | L75: 1.078562456
B76: 76 | C76: 17.99485515 | D76: 6.88034543 | E76: 3.622158653 | F76: 2.3605712 | G76: 1.77388341 | H76: 1.465932598 | I76: 1.290777836 | J76: 1.185695691 | K76: 1.120375104 | L76: 1.078799659
B77: 77 | C77: 18.15166834 | D77: 6.920084958 | E77: 3.63603196 | F77: 2.366568828 | G77: 1.776873882 | H77: 1.467572626 | I77: 1.291736266 | J77: 1.186280064 | K77: 1.120741638 | L77: 1.079033944
B78: 78 | C78: 18.30780714 | D78: 6.959541289 | E78: 3.649780695 | F78: 2.372505347 | G78: 1.779831538 | H78: 1.469193833 | I78: 1.292683395 | J78: 1.186857434 | K78: 1.121103739 | L78: 1.079265383
B79: 79 | C79: 18.46328302 | D79: 6.998720002 | E79: 3.663407533 | F79: 2.378382136 | G79: 1.782757143 | H79: 1.470796666 | I79: 1.293619495 | J79: 1.18742797 | K79: 1.121461514 | L79: 1.079494044
B80: 80 | C80: 18.61810707 | D80: 7.037626496 | E80: 3.676915057 | F80: 2.384200528 | G80: 1.785651436 | H80: 1.472381557 | I80: 1.294544825 | J80: 1.187991835 | K80: 1.121815067 | L80: 1.079719994
B81: 81 | C81: 18.7722901 | D81: 7.076266003 | E81: 3.690305764 | F81: 2.389961812 | G81: 1.788515128 | H81: 1.473948921 | I81: 1.29545964 | J81: 1.188549186 | K81: 1.122164498 | L81: 1.079943296
B82: 82 | C82: 18.9258426 | D82: 7.114643589 | E82: 3.703582071 | F82: 2.39566723 | G82: 1.791348908 | H82: 1.47549916 | I82: 1.296364181 | J82: 1.189100176 | K82: 1.122509903 | L82: 1.080164014
B83: 83 | C83: 19.07877474 | D83: 7.152764165 | E83: 3.716746315 | F83: 2.401317984 | G83: 1.794153439 | H83: 1.47703266 | I83: 1.297258685 | J83: 1.18964495 | K83: 1.122851374 | L83: 1.080382206
B84: 84 | C84: 19.23109644 | D84: 7.190632491 | E84: 3.729800759 | F84: 2.406915237 | G84: 1.796929363 | H84: 1.478549797 | I84: 1.298143379 | J84: 1.19018365 | K84: 1.123189002 | L84: 1.08059793
B85: 85 | C85: 19.38281733 | D85: 7.228253187 | E85: 3.742747594 | F85: 2.412460114 | G85: 1.799677301 | H85: 1.480050933 | I85: 1.299018481 | J85: 1.190716412 | K85: 1.123522874 | L85: 1.080811241
B86: 86 | C86: 19.53394677 | D86: 7.265630734 | E86: 3.755588943 | F86: 2.417953702 | G86: 1.802397853 | H86: 1.481536416 | I86: 1.299884203 | J86: 1.191243369 | K86: 1.123853072 | L86: 1.081022194
B87: 87 | C87: 19.68449387 | D87: 7.30276948 | E87: 3.768326861 | F87: 2.423397054 | G87: 1.805091599 | H87: 1.483006585 | I87: 1.300740751 | J87: 1.191764648 | K87: 1.124179677 | L87: 1.08123084
B88: 88 | C88: 19.83446752 | D88: 7.339673649 | E88: 3.780963343 | F88: 2.428791191 | G88: 1.807759101 | H88: 1.484461768 | I88: 1.301588323 | J88: 1.192280372 | K88: 1.124502769 | L88: 1.081437231
B89: 89 | C89: 19.98387635 | D89: 7.376347341 | E89: 3.793500323 | F89: 2.434137101 | G89: 1.810400903 | H89: 1.48590228 | I89: 1.30242711 | J89: 1.192790661 | K89: 1.124822423 | L89: 1.081641413
B90: 90 | C90: 20.13272876 | D90: 7.412794543 | E90: 3.805939676 | F90: 2.439435741 | G90: 1.813017532 | H90: 1.487328429 | I90: 1.303257298 | J90: 1.193295631 | K90: 1.125138713 | L90: 1.081843436
B91: 91 | C91: 20.28103297 | D91: 7.449019128 | E91: 3.818283223 | F91: 2.444688041 | G91: 1.815609498 | H91: 1.488740511 | I91: 1.304079067 | J91: 1.193795393 | K91: 1.125451708 | L91: 1.082043343
B92: 92 | C92: 20.42879695 | D92: 7.48502486 | E92: 3.83053273 | F92: 2.449894899 | G92: 1.818177297 | H92: 1.490138815 | I92: 1.304892591 | J92: 1.194290056 | K92: 1.125761479 | L92: 1.08224118
B93: 93 | C93: 20.57602849 | D93: 7.520815402 | E93: 3.842689913 | F93: 2.455057191 | G93: 1.820721407 | H93: 1.491523618 | I93: 1.30569804 | J93: 1.194779724 | K93: 1.126068091 | L93: 1.082436989
B94: 94 | C94: 20.72273519 | D94: 7.556394317 | E94: 3.854756439 | F94: 2.460175764 | G94: 1.823242294 | H94: 1.492895192 | I94: 1.306495575 | J94: 1.195264501 | K94: 1.126371609 | L94: 1.082630812
B95: 95 | C95: 20.86892444 | D95: 7.591765071 | E95: 3.866733927 | F95: 2.46525144 | G95: 1.825740409 | H95: 1.494253797 | I95: 1.307285357 | J95: 1.195744484 | K95: 1.126672096 | L95: 1.082822688
B96: 96 | C96: 21.01460348 | D96: 7.626931038 | E96: 3.878623952 | F96: 2.470285018 | G96: 1.82821619 | H96: 1.49559969 | I96: 1.308067539 | J96: 1.196219768 | K96: 1.126969613 | L96: 1.083012658
B97: 97 | C97: 21.15977934 | D97: 7.661895504 | E97: 3.890428043 | F97: 2.475277276 | G97: 1.830670063 | H97: 1.496933116 | I97: 1.308842269 | J97: 1.196690448 | K97: 1.127264218 | L97: 1.083200758
B98: 98 | C98: 21.30445891 | D98: 7.696661669 | E98: 3.902147689 | F98: 2.480228966 | G98: 1.83310244 | H98: 1.498254316 | I98: 1.309609694 | J98: 1.197156613 | K98: 1.127555968 | L98: 1.083387026
B99: 99 | C99: 21.44864891 | D99: 7.731232648 | E99: 3.913784338 | F99: 2.485140822 | G99: 1.835513722 | H99: 1.499563521 | I99: 1.310369954 | J99: 1.197618351 | K99: 1.12784492 | L99: 1.083571497
B100: 100 | C100: 21.59235589 | D100: 7.765611481 | E100: 3.925339398 | F100: 2.490013556 | G100: 1.8379043 | H100: 1.500860957 | I100: 1.311123185 | J100: 1.198075745 | K100: 1.128131127 | L100: 1.083754206
B101: 101 | C101: 21.73558627 | D101: 7.799801127 | E101: 3.93681424 | F101: 2.494847862 | G101: 1.840274551 | H101: 1.502146846 | I101: 1.311869519 | J101: 1.19852888 | K101: 1.128414641 | L101: 1.083935186
B102: 102 | C102: 21.8783463 | D102: 7.833804472 | E102: 3.9482102 | F102: 2.499644413 | G102: 1.842624844 | H102: 1.503421398 | I102: 1.312609087 | J102: 1.198977836 | K102: 1.128695513 | L102: 1.084114471
B103: 103 | C103: 22.02064211 | D103: 7.867624331 | E103: 3.959528577 | F103: 2.504403866 | G103: 1.844955537 | H103: 1.504684823 | I103: 1.313342013 | J103: 1.199422689 | K103: 1.128973793 | L103: 1.084292091
B104: 104 | C104: 22.16247966 | D104: 7.901263451 | E104: 3.970770638 | F104: 2.509126857 | G104: 1.847266979 | H104: 1.505937322 | I104: 1.314068419 | J104: 1.199863516 | K104: 1.129249528 | L104: 1.084468078
B105: 105 | C105: 22.30386481 | D105: 7.934724508 | E105: 3.981937617 | F105: 2.51381401 | G105: 1.849559508 | H105: 1.507179091 | I105: 1.314788423 | J105: 1.200300391 | K105: 1.129522766 | L105: 1.084642462
B106: 106 | C106: 22.44480328 | D106: 7.968010118 | E106: 3.993030716 | F106: 2.518465928 | G106: 1.851833454 | H106: 1.50841032 | I106: 1.315502141 | J106: 1.200733384 | K106: 1.129793551 | L106: 1.084815271
B107: 107 | C107: 22.58530065 | D107: 8.001122831 | E107: 4.004051108 | F107: 2.523083202 | G107: 1.854089138 | H107: 1.509631197 | I107: 1.316209685 | J107: 1.201162567 | K107: 1.130061928 | L107: 1.084986535
B108: 108 | C108: 22.72536239 | D108: 8.03406514 | E108: 4.014999935 | F108: 2.527666406 | G108: 1.856326873 | H108: 1.5108419 | I108: 1.316911164 | J108: 1.201588006 | K108: 1.13032794 | L108: 1.085156281
B109: 109 | C109: 22.86499387 | D109: 8.066839476 | E109: 4.025878312 | F109: 2.532216098 | G109: 1.858546963 | H109: 1.512042608 | I109: 1.317606685 | J109: 1.202009768 | K109: 1.130591629 | L109: 1.085324536
B110: 110 | C110: 23.00420031 | D110: 8.099448216 | E110: 4.036687328 | F110: 2.536732825 | G110: 1.860749705 | H110: 1.51323349 | I110: 1.318296349 | J110: 1.202427917 | K110: 1.130853035 | L110: 1.085491326
B111: 111 | C111: 23.14298685 | D111: 8.131893682 | E111: 4.047428042 | F111: 2.541217117 | G111: 1.862935388 | H111: 1.514414714 | I111: 1.31898026 | J111: 1.202842516 | K111: 1.131112199 | L111: 1.085656677
B112: 112 | C112: 23.2813585 | D112: 8.164178142 | E112: 4.058101491 | F112: 2.545669494 | G112: 1.865104294 | H112: 1.515586443 | I112: 1.319658513 | J112: 1.203253625 | K112: 1.131369158 | L112: 1.085820613
B113: 113 | C113: 23.41932019 | D113: 8.196303813 | E113: 4.068708685 | F113: 2.550090461 | G113: 1.867256697 | H113: 1.516748835 | I113: 1.320331206 | J113: 1.203661304 | K113: 1.131623951 | L113: 1.085983158
B114: 114 | C114: 23.55687672 | D114: 8.228272863 | E114: 4.079250611 | F114: 2.554480512 | G114: 1.869392866 | H114: 1.517902045 | I114: 1.320998431 | J114: 1.20406561 | K114: 1.131876614 | L114: 1.086144337
B115: 115 | C115: 23.69403282 | D115: 8.260087411 | E115: 4.089728233 | F115: 2.558840127 | G115: 1.87151306 | H115: 1.519046223 | I115: 1.32166028 | J115: 1.204466601 | K115: 1.132127184 | L115: 1.086304172
B116: 116 | C116: 23.83079311 | D116: 8.291749529 | E116: 4.100142492 | F116: 2.563169778 | G116: 1.873617536 | H116: 1.520181517 | I116: 1.32231684 | J116: 1.204864332 | K116: 1.132375694 | L116: 1.086462685
B117: 117 | C117: 23.96716212 | D117: 8.323261245 | E117: 4.110494308 | F117: 2.567469921 | G117: 1.875706542 | H117: 1.52130807 | I117: 1.322968198 | J117: 1.205258855 | K117: 1.132622178 | L117: 1.086619899
B118: 118 | C118: 24.10314428 | D118: 8.354624542 | E118: 4.120784581 | F118: 2.571741006 | G118: 1.87778032 | H118: 1.522426022 | I118: 1.323614439 | J118: 1.205650223 | K118: 1.132866671 | L118: 1.086775835
B119: 119 | C119: 24.23874396 | D119: 8.385841362 | E119: 4.131014187 | F119: 2.575983469 | G119: 1.879839107 | H119: 1.523535509 | I119: 1.324255645 | J119: 1.206038488 | K119: 1.133109204 | L119: 1.086930513
B120: 120 | C120: 24.37396541 | D120: 8.416913602 | E120: 4.141183987 | F120: 2.580197738 | G120: 1.881883134 | H120: 1.524636665 | I120: 1.324891895 | J120: 1.206423698 | K120: 1.133349809 | L120: 1.087083954
B121: 121 | C121: 24.50881282 | D121: 8.447843124 | E121: 4.151294819 | F121: 2.58438423 | G121: 1.883912628 | H121: 1.52572962 | I121: 1.325523268 | J121: 1.206805904 | K121: 1.133588517 | L121: 1.087236178
B122: 122 | C122: 24.6432903 | D122: 8.478631747 | E122: 4.161347504 | F122: 2.588543353 | G122: 1.885927809 | H122: 1.5268145 | I122: 1.326149842 | J122: 1.207185151 | K122: 1.133825358 | L122: 1.087387204
B123: 123 | C123: 24.77740187 | D123: 8.509281253 | E123: 4.171342846 | F123: 2.592675506 | G123: 1.887928891 | H123: 1.527891429 | I123: 1.326771689 | J123: 1.207561487 | K123: 1.134060361 | L123: 1.087537051
B124: 124 | C124: 24.91115149 | D124: 8.539793389 | E124: 4.181281629 | F124: 2.596781078 | G124: 1.889916087 | H124: 1.52896053 | I124: 1.327388884 | J124: 1.207934957 | K124: 1.134293554 | L124: 1.087685737
B125: 125 | C125: 25.04454302 | D125: 8.570169864 | E125: 4.191164624 | F125: 2.600860451 | G125: 1.8918896 | H125: 1.53002192 | I125: 1.328001497 | J125: 1.208305604 | K125: 1.134524967 | L125: 1.08783328
B126: 126 | C126: 25.17758027 | D126: 8.600412354 | E126: 4.20099258 | F126: 2.604913996 | G126: 1.893849633 | H126: 1.531075714 | I126: 1.328609598 | J126: 1.208673473 | K126: 1.134754626 | L126: 1.087979698
B127: 127 | C127: 25.31026698 | D127: 8.6305225 | E127: 4.210766236 | F127: 2.608942078 | G127: 1.895796382 | H127: 1.532122027 | I127: 1.329213255 | J127: 1.209038605 | K127: 1.134982557 | L127: 1.088125008
B128: 128 | C128: 25.44260682 | D128: 8.660501912 | E128: 4.220486311 | F128: 2.612945054 | G128: 1.89773004 | H128: 1.533160967 | I128: 1.329812535 | J128: 1.209401041 | K128: 1.135208788 | L128: 1.088269227
B129: 129 | C129: 25.57460337 | D129: 8.690352167 | E129: 4.230153511 | F129: 2.616923273 | G129: 1.899650793 | H129: 1.534192645 | I129: 1.330407502 | J129: 1.209760823 | K129: 1.135433344 | L129: 1.088412371
B130: =ROW(A130) -> 130 | C130: 25.70626018 | D130: 8.720074809 | E130: 4.239768527 | F130: 2.620877075 | G130: 1.901558827 | H130: 1.535217164 | I130: 1.33099822 | J130: 1.210117988 | K130: 1.135656248 | L130: 1.088554456
B131: 131 | C131: =(POWER(B131,2)*SQRT(C130))/(B131*C130) -> 25.83758071 | D131: =(POWER(C131,2)*SQRT(D130))/(C131*D130) -> 8.749671356 | E131: =(POWER(D131,2)*SQRT(E130))/(D131*E130) -> 4.249332037 | F131: =(POWER(E131,2)*SQRT(F130))/(E131*F130) -> 2.624806794 | G131: =(POWER(F131,2)*SQRT(G130))/(F131*G130) -> 1.90345432 | H131: =(POWER(G131,2)*SQRT(H130))/(G131*H130) -> 1.536234628 | I131: =(POWER(H131,2)*SQRT(I130))/(H131*I130) -> 1.331584751 | J131: =(POWER(I131,2)*SQRT(J130))/(I131*J130) -> 1.210472576 | K131: =(POWER(J131,2)*SQRT(K130))/(J131*K130) -> 1.135877527 | L131: =(POWER(K131,2)*SQRT(L130))/(K131*L130) -> 1.088695499
B132: 132 | C132: 25.96856838 | D132: 8.779143293 | E132: 4.258844702 | F132: 2.628712759 | G132: 1.905337449 | H132: 1.537245139 | I132: 1.332167156 | J132: 1.210824624 | K132: 1.136097204 | L132: 1.088835513
B133: 133 | C133: 26.09922653 | D133: 8.808492079 | E133: 4.268307172 | F133: 2.632595288 | G133: 1.907208387 | H133: 1.538248795 | I133: 1.332745493 | J133: 1.21117417 | K133: 1.136315302 | L133: 1.088974515
B134: 134 | C134: 26.22955846 | D134: 8.837719143 | E134: 4.277720084 | F134: 2.636454696 | G134: 1.909067301 | H134: 1.539245693 | I134: 1.333319823 | J134: 1.211521249 | K134: 1.136531843 | L134: 1.089112519
B135: 135 | C135: 26.3595674 | D135: 8.866825889 | E135: 4.287084061 | F135: 2.640291289 | G135: 1.910914357 | H135: 1.540235928 | I135: 1.3338902 | J135: 1.211865896 | K135: 1.136746851 | L135: 1.089249539
B136: 136 | C136: 26.48925652 | D136: 8.895813693 | E136: 4.296399716 | F136: 2.644105367 | G136: 1.912749716 | H136: 1.541219592 | I136: 1.334456681 | J136: 1.212208147 | K136: 1.136960347 | L136: 1.089385589
B137: 137 | C137: 26.61862896 | D137: 8.924683906 | E137: 4.305667646 | F137: 2.647897227 | G137: 1.914573536 | H137: 1.542196777 | I137: 1.335019321 | J137: 1.212548034 | K137: 1.137172353 | L137: 1.089520684
B138: 138 | C138: 26.74768778 | D138: 8.953437854 | E138: 4.31488844 | F138: 2.651667155 | G138: 1.916385973 | H138: 1.54316757 | I138: 1.335578172 | J138: 1.212885591 | K138: 1.137382889 | L138: 1.089654836
B139: 139 | C139: 26.876436 | D139: 8.982076838 | E139: 4.324062674 | F139: 2.655415436 | G139: 1.918187178 | H139: 1.544132059 | I139: 1.336133287 | J139: 1.21322085 | K139: 1.137591976 | L139: 1.089788059
B140: 140 | C140: 27.00487658 | D140: 9.010602137 | E140: 4.333190914 | F140: 2.659142346 | G140: 1.919977301 | H140: 1.545090329 | I140: 1.336684717 | J140: 1.213553843 | K140: 1.137799634 | L140: 1.089920365
B141: 141 | C141: 27.13301246 | D141: 9.039015005 | E141: 4.342273712 | F141: 2.662848157 | G141: 1.921756485 | H141: 1.546042464 | I141: 1.337232512 | J141: 1.213884601 | K141: 1.138005883 | L141: 1.090051768
B142: 142 | C142: 27.26084649 | D142: 9.067316673 | E142: 4.351311614 | F142: 2.666533135 | G142: 1.923524875 | H142: 1.546988545 | I142: 1.337776721 | J142: 1.214213154 | K142: 1.138210742 | L142: 1.090182279
B143: 143 | C143: 27.38838151 | D143: 9.095508353 | E143: 4.360305153 | F143: 2.670197542 | G143: 1.925282611 | H143: 1.547928653 | I143: 1.338317393 | J143: 1.214539532 | K143: 1.138414229 | L143: 1.090311911
B144: 144 | C144: 27.51562029 | D144: 9.123591232 | E144: 4.369254851 | F144: 2.673841633 | G144: 1.927029828 | H144: 1.548862865 | I144: 1.338854573 | J144: 1.214863765 | K144: 1.138616364 | L144: 1.090440675
B145: 145 | C145: 27.64256557 | D145: 9.151566478 | E145: 4.378161224 | F145: 2.677465661 | G145: 1.928766663 | H145: 1.54979126 | I145: 1.33938831 | J145: 1.21518588 | K145: 1.138817164 | L145: 1.090568584
B146: 146 | C146: 27.76922003 | D146: 9.179435238 | E146: 4.387024775 | F146: 2.681069871 | G146: 1.930493247 | H146: 1.550713912 | I146: 1.339918647 | J146: 1.215505907 | K146: 1.139016647 | L146: 1.090695648

Sheet Hárok3
B1: =COLUMN(A1) -> 1 | C1: =COLUMN(B1) -> 2 | D1: 3 | E1: 4 | F1: 5 | G1: 6 | H1: 7 | I1: 8 | J1: 9 | K1: 10 | L1: 11
B2: =ROW(A2) -> 2 | C2: =(POWER(B2,2)*SQRT(C1))/(B2*C1) -> 1.414213562 | D2: =(POWER(C2,2)*SQRT(D1))/(C2*D1) -> 0.8164965809 | E2: 0.4082482905 | F2: 0.1825741858 | G2: 0.07453559925 | H2: 0.02817180849 | I2: 0.009960238411 | J2: 0.00332007947 | K2: 0.001049901314 | L2: 0.0003165571568
B3: 3 | C3: =(POWER(B3,2)*SQRT(C2))/(B3*C2) -> 2.522689246 | D3: 2.791814577 | E3: 4.369425945 | F3: 10.2259743 | G3: 37.45612305 | H3: 223.159541 | I3: 2236.045273 | J3: 38806.66779 | K3: 1197656.051 | L3: 67314100.2
B4: 4 | C4: 2.518419732 | D4: 1.507248388 | E4: 0.721062046 | F4: 0.2254863664 | G4: 0.03684333005 | H4: 0.00246632978 | I4: 5.21567895e-05 | J4: 2.647632322e-07 | K4: 2.419310541e-10 | L4: 2.948754354e-14
B5: 5 | C5: 3.150691981 | D5: 2.566336103 | E5: 3.022227933 | F5: 6.364540746 | G5: 33.15794699 | H5: 667.6703024 | I5: 92449.94011 | J5: 179670922.2 | K5: 1.155132992e+13 | L5: 6.726864668e+19
B6: 6 | C6: 3.380245759 | D6: 2.110043991 | E6: 1.213746253 | F6: 0.4811099808 | G6: 0.08355078797 | H6: 0.003233475096 | I6: 1.063447864e-05 | J6: 7.933727959e-10 | K6: 2.334324943e-16 | L6: 2.846131523e-26
B7: 7 | C7: 3.807359639 | D7: 2.621067146 | E7: 2.37910821 | F7: 3.429983355 | G7: 11.86633862 | H7: 208.6805522 | I7: 63991.73357 | J7: 2271879136 | K7: 1.486978085e+17 | L7: 8.814081971e+29
B8: 8 | C8: 4.09994505 | D8: 2.532438823 | E8: 1.641843904 | F8: 0.886514531 | G8: 0.2573519657 | H8: 0.01781502767 | I8: 7.04246283e-05 | J8: 1.477515181e-09 | K8: 3.831595619e-18 | L8: 4.081230517e-33
B9: 9 | C9: 4.44481297 | D9: 2.793084084 | E9: 2.179807174 | F9: 2.31512875 | G9: 4.563640266 | H9: 34.1914999 | I9: 4074.326897 | J9: 105996102.2 | K9: 5.415019951e+16 | L9: 8.476264461e+32
B10: 10 | C10: 4.743219844 | D10: 2.838123236 | E10: 1.922304623 | F10: 1.263381858 | G10: 0.5913967515 | H10: 0.1011392802 | I10: 0.00158449883 | J10: 1.539029609e-07 | K10: 6.613737364e-16 | L10: 2.271667138e-32
B11: 11 | C11: 5.050752157 | D11: 2.998060782 | E11: 2.162366617 | F11: 1.923809256 | G11: 2.501626925 | H11: 7.866157058 | I11: 197.613519 | J11: 503724.6043 | K11: 1.958707977e+13 | L11: 1.299563018e+29
B12: 12 | C12: 5.339532288 | D12: 3.083777251 | E12: 2.097096118 | F12: 1.511949659 | G12: 0.9559299312 | H12: 0.3408354455 | I12: 0.02424579492 | J12: 3.416172916e-05 | K12: 7.718892617e-12 | L12: 2.141195525e-26
B13: 13 | C13: 5.625896573 | D13: 3.203688215 | E13: 2.212285004 | F13: 1.799170865 | G13: 1.840176074 | H13: 3.152005764 | I13: 20.24271634 | J13: 3463.369809 | K13: 1246583480 | L13: 8.519089946e+21
B14: 14 | C14: 5.90244792 | D14: 3.297668851 | E14: 2.21710624 | F14: 1.652914157 | G14: 1.218486185 | H14: 0.6863207162 | I14: 0.1525431511 | J14: 0.002592049434 | K14: 7.341462696e-08 | L14: 7.954007471e-19
B15: 15 | C15: 6.174121578 | D15: 3.399943157 | E15: 2.283381111 | F15: 1.776042092 | G15: 1.608951487 | H15: 1.942134913 | I15: 4.972594427 | J15: 97.6700475 | K15: 360470.8086 | L15: 4.041821256e+14
B16: 16 | C16: 6.439207112 | D16: 3.49217956 | E16: 2.311039476 | F16: 1.734126348 | G16: 1.367128264 | H16: 0.9810012578 | I16: 0.4399243943 | J16: 0.04451407419 | K16: 7.41416582e-05 | L16: 3.687854203e-12
B17: 17 | C17: 6.699350875 | D17: 3.584961049 | E17: 2.358200675 | F17: 1.790772395 | G17: 1.531566153 | H17: 1.546325714 | I17: 2.331374036 | J17: 11.05002556 | K17: 1283.311646 | L17: 668259688.2
B18: 18 | C18: 6.954343575 | D18: 3.672940747 | E18: 2.391792736 | F18: 1.787324247 | G18: 1.444227024 | H18: 1.161408441 | I18: 0.7606397205 | J18: 0.2288217797 | K18: 0.006387505564 | L18: 2.470919857e-07
B19: 19 | C19: =(POWER(B19,2)*SQRT(C18))/(B19*C18) -> 7.204859721 | D19: 3.759400271 | E19: 2.430842367 | F19: 1.818256394 | G19: 1.512994642 | H19: 1.403928211 | I19: 1.609738757 | J19: 3.365167772 | K19: 42.10571779 | L19: 84705.52637
B20: 20 | C20: 7.451045766 | D20: 3.842889942 | E20: 2.464787871 | F20: 1.827898121 | G20: 1.486049553 | H20: 1.254182802 | I20: 0.9885147199 | J20: 0.5388647565 | K20: 0.08304418792 | L20: 0.0002853338982
B21: 21 | C21: 7.69326477 | D21: 3.924476257 | E21: 2.499723263 | F21: 1.848910712 | G21: 1.516698624 | H21: 1.354312454 | I21: 1.362157425 | J21: 1.855613023 | K21: 6.439212991 | L21: 381.2028208
B22: 22 | C22: 7.931719389 | D22: 4.003837918 | E22: 2.532389606 | F22: 1.862398242 | G22: 1.512247609 | H22: 1.29946166 | I22: 1.113396417 | J22: 0.8173463238 | K22: 0.3220992535 | L22: 0.01649725417
B23: 23 | C23: 8.166654176 | D23: 4.081369562 | E23: 2.564724144 | F23: 1.879335786 | G23: 1.528244813 | H23: 1.340636981 | I23: 1.270533982 | J23: 1.405345892 | K23: 2.47621511 | L23: 19.27891269
B24: 24 | C24: 8.398256969 | D24: 4.157059095 | E24: 2.595767964 | F24: 1.89349288 | G24: 1.531677072 | H24: 1.322853083 | I24: 1.173595596 | J24: 0.9899809939 | K24: 0.6291188127 | L24: 0.1432819238
B25: 25 | C25: 8.626714576 | D25: 4.231090649 | E25: 2.626149198 | F25: 1.908479756 | G25: 1.542069516 | H25: 1.340751048 | I25: 1.237624533 | J25: 1.243871396 | K25: 1.568227788 | L25: 4.142985783
B26: 26 | C26: 8.852188094 | D26: 4.303526369 | E26: 2.655612905 | F26: 1.922299228 | G26: 1.547993083 | H26: 1.336887748 | I26: 1.20171225 | J26: 1.077488758 | K26: 0.8604154008 | L26: 0.4227186937
B27: 27 | C27: 9.074828942 | D27: 4.374477764 | E27: 2.684378972 | F27: 1.93612473 | G27: 1.556140567 | H27: 1.345864546 | I27: 1.227725026 | J27: 1.182754842 | K27: 1.275089434 | L27: 1.96116855
B28: 28 | C28: 9.294773425 | D28: 4.444016891 | E28: 2.71240032 | F28: 1.949337874 | G28: 1.562653571 | H28: 1.346982744 | I28: 1.215658183 | J28: 1.117800013 | K28: 0.9899056134 | L28: 0.7068647535
B29: 29 | C29: 9.512147895 | D29: 4.512224961 | E29: 2.739768386 | F29: 1.962322076 | G29: 1.56978052 | H29: 1.352564297 | I29: 1.226739022 | J29: 1.160299553 | K29: 1.166200522 | L29: 1.387091365
B30: 30 | C30: 9.727068128 | D30: 4.579168092 | E30: 2.766493542 | F30: 1.974897299 | G30: 1.576249814 | H30: 1.355333237 | I30: 1.22368602 | J30: 1.136017276 | K30: 1.051957805 | L30: 0.8931939773
B31: 31 | C31: 9.93964137 | D31: 4.644911268 | E31: 2.792624808 | F31: 1.987194304 | G31: 1.582806443 | H31: 1.359579994 | I31: 1.229050608 | J31: 1.153127417 | K31: 1.124289457 | L31: 1.18961175
B32: 32 | C32: 10.14996678 | D32: 4.709512021 | E32: 2.818185746 | F32: 1.999168716 | G32: 1.589042608 | H32: 1.362803247 | I32: 1.229272813 | J32: 1.144747299 | K32: 1.079619098 | L32: 0.9898466919
B33: 33 | C33: 10.35813649 | D33: 4.77302462 | E33: 2.843209539 | F33: 2.01087069 | G33: 1.595204525 | H33: 1.36646903 | I33: 1.232468008 | J33: 1.15191608 | K33: 1.108627281 | L33: 1.114298623
B34: 34 | C34: 10.56423619 | D34: 4.835498635 | E34: 2.867720568 | F34: 2.022296169 | G34: 1.601166786 | H34: 1.369735388 | I34: 1.2338116 | J34: 1.149577959 | K34: 1.09180643 | L34: 1.034296014
B35: 35 | C35: =(POWER(B35,2)*SQRT(C34))/(B35*C34) -> 10.76834579 | D35: 4.896980343 | E35: 2.891744679 | F35: 2.033469044 | G35: 1.60701259 | H35: 1.373096123 | I35: 1.236165209 | J35: 1.152941581 | K35: 1.103403808 | L35: 1.084955818
B36: 36 | C36: 10.97053997 | D36: 4.957512567 | E36: 2.915304019 | F36: 2.044396217 | G36: 1.612706844 | H36: 1.376274168 | I36: 1.237846236 | J36: 1.152824106 | K36: 1.097477966 | L36: 1.053634016
B37: 37 | C37: 11.17088863 | D37: 5.017135265 | E37: 2.938420089 | F37: 2.055092386 | G37: 1.618279884 | H37: 1.379434731 | I37: 1.239846174 | J37: 1.154745508 | K37: 1.102270988 | L37: 1.073849663
B38: 38 | C38: 11.36945732 | D38: 5.07588566 | E38: 2.961112369 | F38: 2.065566651 | G38: 1.623724694 | H38: 1.382489423 | I38: 1.241589166 | J38: 1.155406412 | K38: 1.100501364 | L38: 1.061986124
B39: 39 | C39: 11.56630763 | D39: 5.133798561 | E39: 2.983399274 | F39: 2.075829947 | G39: 1.629054355 | H39: 1.385494055 | I39: 1.243413876 | J39: 1.156773478 | K39: 1.10268897 | L39: 1.070024223
B40: 40 | C40: 11.76149753 | D40: 5.190906541 | E40: 3.005297845 | F40: 2.085891111 | G40: 1.63427014 | H40: 1.388422082 | I40: 1.24512702 | J40: 1.157682574 | K40: 1.102460355 | L40: 1.065776589
B41: 41 | C41: 11.95508163 | D41: 5.24724015 | E41: 3.026824085 | F41: 2.095759118 | G41: 1.639379279 | H41: 1.391293273 | I41: 1.246843244 | J41: 1.158823006 | K41: 1.103660801 | L41: 1.069061107
B42: 42 | C42: 12.14711149 | D42: 5.302828076 | E42: 3.047992938 | F42: 2.105441962 | G42: 1.644385178 | H42: 1.394100911 | I42: 1.248499241 | J42: 1.159790984 | K42: 1.103981814 | L42: 1.067728056
B43: 43 | C43: 12.33763582 | D43: 5.357697303 | E43: 3.06881844 | F43: 2.114947338 | G43: 1.649292869 | H43: 1.396852906 | I43: 1.250133907 | J43: 1.16082478 | K43: 1.104805202 | L43: 1.069191219
B44: 44 | C44: 12.52670076 | D44: 5.411873248 | E44: 3.08931376 | F44: 2.124282346 | G44: 1.654106047 | H44: 1.399548688 | I44: 1.251727357 | J44: 1.161786723 | K44: 1.105308612 | L44: 1.068946235
B45: 45 | C45: 12.71434999 | D45: 5.465379885 | E45: 3.10949129 | F45: 2.133453712 | G45: 1.658828736 | H45: 1.402192192 | I45: 1.253293168 | J45: 1.162758353 | K45: 1.105981063 | L45: 1.069719124
B46: 46 | C46: 12.90062498 | D46: 5.518239855 | E46: 3.129362696 | F46: 2.142467728 | G46: 1.663464411 | H46: 1.404784613 | I46: 1.254825702 | J46: 1.163693669 | K46: 1.106534161 | L46: 1.069867379
B47: 47 | C47: 13.08556511 | D47: 5.570474569 | E47: 3.148938982 | F47: 2.151330334 | G47: 1.668016506 | H47: 1.407328469 | I47: 1.256330116 | J47: 1.164620512 | K47: 1.107138675 | L47: 1.070377691
B48: 48 | C48: 13.26920782 | D48: 5.622104298 | E48: 3.168230536 | F48: 2.16004712 | G48: 1.672488164 | H48: 1.409825354 | I48: 1.257805331 | J48: 1.165523982 | K48: 1.107695019 | L48: 1.070660249
B49: 49 | C49: 13.45158877 | D49: 5.673148254 | E49: 3.187247178 | F49: 2.168623366 | G49: 1.676882399 | H49: 1.4122772 | I49: 1.25925369 | J49: 1.166413736 | K49: 1.108262208 | L49: 1.071067113
B50: 50 | C50: 13.63274192 | D50: 5.723624669 | E50: 3.2059982 | F50: 2.177064058 | G50: 1.681202026 | H50: 1.414685593 | I50: 1.260675505 | J50: 1.167285261 | K50: 1.108806441 | L50: 1.071389529
B51: 51 | C51: =(POWER(B51,2)*SQRT(C50))/(B51*C50) -> 13.81269968 | D51: 5.773550861 | E51: 3.224492409 | F51: 2.185373915 | G51: 1.685449725 | H51: 1.417052162 | I51: 1.26207214 | J51: 1.168142107 | K51: 1.10934801 | L51: 1.071751524
B52: 52 | C52: 13.99149298 | D52: 5.822943295 | E52: 3.242738154 | F52: 2.193557404 | G52: 1.689628019 | H52: 1.419378375 | I52: 1.263444282 | J52: 1.16898316 | K52: 1.10987572 | L52: 1.07208025
B53: 53 | C53: 14.16915138 | D53: 5.871817645 | E53: 3.260743363 | F53: 2.201618759 | G53: 1.693739304 | H53: 1.421665661 | I53: 1.264792921 | J53: 1.169809917 | K53: 1.110396601 | L53: 1.072418941
B54: 54 | C54: 14.34570314 | D54: 5.92018884 | E54: 3.278515569 | F54: 2.209561998 | G54: 1.697785848 | H54: 1.423915352 | I54: 1.266118805 | J54: 1.170622345 | K54: 1.110907114 | L54: 1.072742558
B55: 55 | C55: 14.52117535 | D55: 5.968071117 | E55: 3.29606194 | F55: 2.217390939 | G55: 1.701769806 | H55: 1.426128725 | I55: 1.267422749 | J55: 1.171421237 | K55: 1.111409793 | L55: 1.073066073
B56: 56 | C56: 14.6955939 | D56: 6.015478063 | E56: 3.313389298 | F56: 2.225109208 | G56: 1.705693223 | H56: 1.428306985 | I56: 1.268705467 | J56: 1.172206876 | K56: 1.111903648 | L56: 1.073381049
B57: 57 | C57: 14.86898367 | D57: 6.062422655 | E57: 3.330504144 | F57: 2.232720258 | G57: 1.709558044 | H57: 1.43045128 | I57: 1.26996767 | J57: 1.172979799 | K57: 1.112389691 | L57: 1.073692683
B58: 58 | C58: 15.0413685 | D58: 6.108917299 | E58: 3.347412678 | F58: 2.240227377 | G58: 1.713366119 | H58: 1.432562701 | I58: 1.271210018 | J58: 1.173740365 | K58: 1.112867764 | L58: 1.073998231
B59: 59 | C59: 15.21277129 | D59: 6.154973864 | E59: 3.36412082 | F59: 2.247633698 | G59: 1.717119212 | H59: 1.434642286 | I59: 1.272433147 | J59: 1.174489001 | K59: 1.113338359 | L59: 1.07429954
B60: 60 | C60: 15.38321403 | D60: 6.20060371 | E60: 3.380634222 | F60: 2.25494221 | G60: 1.720819 | H60: 1.436691025 | I60: 1.273637659 | J60: 1.175226064 | K60: 1.113801577 | L60: 1.074595787
B61: 61 | C61: 15.55271787 | D61: 6.245817726 | E61: 3.396958289 | F61: 2.262155767 | G61: 1.724467087 | H61: 1.438709862 | I61: 1.274824128 | J61: 1.175951925 | K61: 1.114257723 | L61: 1.074887682
B62: 62 | C62: 15.72130316 | D62: 6.290626348 | E62: 3.41309819 | F62: 2.269277095 | G62: 1.728065002 | H62: 1.440699695 | I62: 1.275993103 | J62: 1.176666918 | K62: 1.114706971 | L62: 1.07517504
B63: 63 | C63: 15.8889895 | D63: 6.335039591 | E63: 3.429058877 | F63: 2.2763088 | G63: 1.731614206 | H63: 1.442661386 | I63: 1.277145108 | J63: 1.177371375 | K63: 1.115149552 | L63: 1.07545818
B64: 64 | C64: 16.05579576 | D64: 6.379067068 | E64: 3.444845091 | F64: 2.283253376 | G64: 1.735116096 | H64: 1.444595756 | I64: 1.278280643 | J64: 1.178065604 | K64: 1.11558565 | L64: 1.075737122
B65: 65 | C65: 16.22174011 | D65: 6.422718016 | E65: 3.460461378 | F65: 2.290113212 | G65: 1.738572008 | H65: 1.446503589 | I65: 1.279400186 | J65: 1.178749907 | K65: 1.116015462 | L65: 1.076012048
B66: =ROW(A66) -> 66 | C66: 16.3868401 | D66: 6.466001312 | E66: 3.475912099 | F66: 2.296890593 | G66: 1.741983221 | H66: 1.448385638 | I66: 1.280504194 | J66: 1.179424566 | K66: 1.116439166 | L66: 1.07628304
B67: 67 | C67: =(POWER(B67,2)*SQRT(C66))/(B67*C66) -> 16.55111266 | D67: 6.508925497 | E67: 3.491201439 | F67: 2.303587713 | G67: 1.745350962 | H67: 1.450242622 | I67: 1.281593105 | J67: 1.180089857 | K67: 1.116856936 | L67: 1.076550228
B68: 68 | C68: 16.71457412 | D68: 6.551498789 | E68: 3.50633342 | F68: 2.310206675 | G68: 1.748676403 | H68: 1.45207523 | I68: 1.282667339 | J68: 1.180746039 | K68: 1.117268938 | L68: 1.076813709
B69: 69 | C69: 16.87724026 | D69: 6.593729102 | E69: 3.521311905 | F69: 2.316749499 | G69: 1.751960672 | H69: 1.453884124 | I69: 1.283727297 | J69: 1.181393365 | K69: 1.11767533 | L69: 1.07707359
B70: 70 | C70: 17.03912636 | D70: 6.635624061 | E70: 3.536140609 | F70: 2.323218123 | G70: 1.75520485 | H70: 1.455669938 | I70: 1.284773367 | J70: 1.182032075 | K70: 1.118076266 | L70: 1.077329967
B71: 71 | C71: 17.20024714 | D71: 6.677191016 | E71: 3.550823108 | F71: 2.32961441 | G71: 1.758409976 | H71: 1.45743328 | I71: 1.285805916 | J71: 1.182662398 | K71: 1.118471893 | L71: 1.077582934
B72: 72 | C72: 17.36061688 | D72: 6.718437057 | E72: 3.565362842 | F72: 2.335940153 | G72: 1.761577046 | H72: 1.459174735 | I72: 1.286825302 | J72: 1.183284558 | K72: 1.118862349 | L72: 1.077832581
B73: 73 | C73: 17.52024938 | D73: 6.759369026 | E73: 3.579763127 | F73: 2.342197075 | G73: 1.764707019 | H73: 1.460894864 | I73: 1.287831865 | J73: 1.183898767 | K73: 1.119247771 | L73: 1.078078995
B74: 74 | C74: 17.67915803 | D74: 6.799993527 | E74: 3.594027155 | F74: 2.348386835 | G74: 1.767800818 | H74: 1.462594208 | I74: 1.288825933 | J74: 1.184505228 | K74: 1.119628289 | L74: 1.07832226
B75: 75 | C75: 17.83735577 | D75: 6.84031694 | E75: 3.608158007 | F75: 2.35451103 | G75: 1.77085933 | H75: 1.464273286 | I75: 1.289807822 | J75: 1.18510414 | K75: 1.120004026 | L75: 1.078562456
B76: 76 | C76: 17.99485515 | D76: 6.88034543 | E76: 3.622158653 | F76: 2.3605712 | G76: 1.77388341 | H76: 1.465932598 | I76: 1.290777836 | J76: 1.185695691 | K76: 1.120375104 | L76: 1.078799659
B77: 77 | C77: 18.15166834 | D77: 6.920084958 | E77: 3.63603196 | F77: 2.366568828 | G77: 1.776873882 | H77: 1.467572626 | I77: 1.291736266 | J77: 1.186280064 | K77: 1.120741638 | L77: 1.079033944
B78: 78 | C78: 18.30780714 | D78: 6.959541289 | E78: 3.649780695 | F78: 2.372505347 | G78: 1.779831538 | H78: 1.469193833 | I78: 1.292683395 | J78: 1.186857434 | K78: 1.121103739 | L78: 1.079265383
B79: 79 | C79: 18.46328302 | D79: 6.998720002 | E79: 3.663407533 | F79: 2.378382136 | G79: 1.782757143 | H79: 1.470796666 | I79: 1.293619495 | J79: 1.18742797 | K79: 1.121461514 | L79: 1.079494044
B80: 80 | C80: 18.61810707 | D80: 7.037626496 | E80: 3.676915057 | F80: 2.384200528 | G80: 1.785651436 | H80: 1.472381557 | I80: 1.294544825 | J80: 1.187991835 | K80: 1.121815067 | L80: 1.079719994
B81: 81 | C81: 18.7722901 | D81: 7.076266003 | E81: 3.690305764 | F81: 2.389961812 | G81: 1.788515128 | H81: 1.473948921 | I81: 1.29545964 | J81: 1.188549186 | K81: 1.122164498 | L81: 1.079943296
B82: 82 | C82: 18.9258426 | D82: 7.114643589 | E82: 3.703582071 | F82: 2.39566723 | G82: 1.791348908 | H82: 1.47549916 | I82: 1.296364181 | J82: 1.189100176 | K82: 1.122509903 | L82: 1.080164014
B83: 83 | C83: =(POWER(B83,2)*SQRT(C82))/(B83*C82) -> 19.07877474 | D83: 7.152764165 | E83: 3.716746315 | F83: 2.401317984 | G83: 1.794153439 | H83: 1.47703266 | I83: 1.297258685 | J83: 1.18964495 | K83: 1.122851374 | L83: 1.080382206
B84: 84 | C84: 19.23109644 | D84: 7.190632491 | E84: 3.729800759 | F84: 2.406915237 | G84: 1.796929363 | H84: 1.478549797 | I84: 1.298143379 | J84: 1.19018365 | K84: 1.123189002 | L84: 1.08059793
B85: 85 | C85: 19.38281733 | D85: 7.228253187 | E85: 3.742747594 | F85: 2.412460114 | G85: 1.799677301 | H85: 1.480050933 | I85: 1.299018481 | J85: 1.190716412 | K85: 1.123522874 | L85: 1.080811241
B86: 86 | C86: 19.53394677 | D86: 7.265630734 | E86: 3.755588943 | F86: 2.417953702 | G86: 1.802397853 | H86: 1.481536416 | I86: 1.299884203 | J86: 1.191243369 | K86: 1.123853072 | L86: 1.081022194
B87: 87 | C87: 19.68449387 | D87: 7.30276948 | E87: 3.768326861 | F87: 2.423397054 | G87: 1.805091599 | H87: 1.483006585 | I87: 1.300740751 | J87: 1.191764648 | K87: 1.124179677 | L87: 1.08123084
B88: 88 | C88: 19.83446752 | D88: 7.339673649 | E88: 3.780963343 | F88: 2.428791191 | G88: 1.807759101 | H88: 1.484461768 | I88: 1.301588323 | J88: 1.192280372 | K88: 1.124502769 | L88: 1.081437231
B89: 89 | C89: 19.98387635 | D89: 7.376347341 | E89: 3.793500323 | F89: 2.434137101 | G89: 1.810400903 | H89: 1.48590228 | I89: 1.30242711 | J89: 1.192790661 | K89: 1.124822423 | L89: 1.081641413
B90: 90 | C90: 20.13272876 | D90: 7.412794543 | E90: 3.805939676 | F90: 2.439435741 | G90: 1.813017532 | H90: 1.487328429 | I90: 1.303257298 | J90: 1.193295631 | K90: 1.125138713 | L90: 1.081843436
B91: 91 | C91: 20.28103297 | D91: 7.449019128 | E91: 3.818283223 | F91: 2.444688041 | G91: 1.815609498 | H91: 1.488740511 | I91: 1.304079067 | J91: 1.193795393 | K91: 1.125451708 | L91: 1.082043343
B92: 92 | C92: 20.42879695 | D92: 7.48502486 | E92: 3.83053273 | F92: 2.449894899 | G92: 1.818177297 | H92: 1.490138815 | I92: 1.304892591 | J92: 1.194290056 | K92: 1.125761479 | L92: 1.08224118
B93: 93 | C93: 20.57602849 | D93: 7.520815402 | E93: 3.842689913 | F93: 2.455057191 | G93: 1.820721407 | H93: 1.491523618 | I93: 1.30569804 | J93: 1.194779724 | K93: 1.126068091 | L93: 1.082436989
B94: 94 | C94: 20.72273519 | D94: 7.556394317 | E94: 3.854756439 | F94: 2.460175764 | G94: 1.823242294 | H94: 1.492895192 | I94: 1.306495575 | J94: 1.195264501 | K94: 1.126371609 | L94: 1.082630812
B95: 95 | C95: 20.86892444 | D95: 7.591765071 | E95: 3.866733927 | F95: 2.46525144 | G95: 1.825740409 | H95: 1.494253797 | I95: 1.307285357 | J95: 1.195744484 | K95: 1.126672096 | L95: 1.082822688
B96: 96 | C96: 21.01460348 | D96: 7.626931038 | E96: 3.878623952 | F96: 2.470285018 | G96: 1.82821619 | H96: 1.49559969 | I96: 1.308067539 | J96: 1.196219768 | K96: 1.126969613 | L96: 1.083012658
B97: 97 | C97: 21.15977934 | D97: 7.661895504 | E97: 3.890428043 | F97: 2.475277276 | G97: 1.830670063 | H97: 1.496933116 | I97: 1.308842269 | J97: 1.196690448 | K97: 1.127264218 | L97: 1.083200758
B98: 98 | C98: 21.30445891 | D98: 7.696661669 | E98: 3.902147689 | F98: 2.480228966 | G98: 1.83310244 | H98: 1.498254316 | I98: 1.309609694 | J98: 1.197156613 | K98: 1.127555968 | L98: 1.083387026
B99: 99 | C99: =(POWER(B99,2)*SQRT(C98))/(B99*C98) -> 21.44864891 | D99: 7.731232648 | E99: 3.913784338 | F99: 2.485140822 | G99: 1.835513722 | H99: 1.499563521 | I99: 1.310369954 | J99: 1.197618351 | K99: 1.12784492 | L99: 1.083571497
B100: 100 | C100: 21.59235589 | D100: 7.765611481 | E100: 3.925339398 | F100: 2.490013556 | G100: 1.8379043 | H100: 1.500860957 | I100: 1.311123185 | J100: 1.198075745 | K100: 1.128131127 | L100: 1.083754206
B101: 101 | C101: 21.73558627 | D101: 7.799801127 | E101: 3.93681424 | F101: 2.494847862 | G101: 1.840274551 | H101: 1.502146846 | I101: 1.311869519 | J101: 1.19852888 | K101: 1.128414641 | L101: 1.083935186
B102: 102 | C102: 21.8783463 | D102: 7.833804472 | E102: 3.9482102 | F102: 2.499644413 | G102: 1.842624844 | H102: 1.503421398 | I102: 1.312609087 | J102: 1.198977836 | K102: 1.128695513 | L102: 1.084114471
B103: 103 | C103: 22.02064211 | D103: 7.867624331 | E103: 3.959528577 | F103: 2.504403866 | G103: 1.844955537 | H103: 1.504684823 | I103: 1.313342013 | J103: 1.199422689 | K103: 1.128973793 | L103: 1.084292091
B104: 104 | C104: 22.16247966 | D104: 7.901263451 | E104: 3.970770638 | F104: 2.509126857 | G104: 1.847266979 | H104: 1.505937322 | I104: 1.314068419 | J104: 1.199863516 | K104: 1.129249528 | L104: 1.084468078
B105: 105 | C105: 22.30386481 | D105: 7.934724508 | E105: 3.981937617 | F105: 2.51381401 | G105: 1.849559508 | H105: 1.507179091 | I105: 1.314788423 | J105: 1.200300391 | K105: 1.129522766 | L105: 1.084642462
B106: 106 | C106: 22.44480328 | D106: 7.968010118 | E106: 3.993030716 | F106: 2.518465928 | G106: 1.851833454 | H106: 1.50841032 | I106: 1.315502141 | J106: 1.200733384 | K106: 1.129793551 | L106: 1.084815271
B107: 107 | C107: 22.58530065 | D107: 8.001122831 | E107: 4.004051108 | F107: 2.523083202 | G107: 1.854089138 | H107: 1.509631197 | I107: 1.316209685 | J107: 1.201162567 | K107: 1.130061928 | L107: 1.084986535
B108: 108 | C108: 22.72536239 | D108: 8.03406514 | E108: 4.014999935 | F108: 2.527666406 | G108: 1.856326873 | H108: 1.5108419 | I108: 1.316911164 | J108: 1.201588006 | K108: 1.13032794 | L108: 1.085156281
B109: 109 | C109: 22.86499387 | D109: 8.066839476 | E109: 4.025878312 | F109: 2.532216098 | G109: 1.858546963 | H109: 1.512042608 | I109: 1.317606685 | J109: 1.202009768 | K109: 1.130591629 | L109: 1.085324536
B110: 110 | C110: 23.00420031 | D110: 8.099448216 | E110: 4.036687328 | F110: 2.536732825 | G110: 1.860749705 | H110: 1.51323349 | I110: 1.318296349 | J110: 1.202427917 | K110: 1.130853035 | L110: 1.085491326
B111: 111 | C111: 23.14298685 | D111: 8.131893682 | E111: 4.047428042 | F111: 2.541217117 | G111: 1.862935388 | H111: 1.514414714 | I111: 1.31898026 | J111: 1.202842516 | K111: 1.131112199 | L111: 1.085656677
B112: 112 | C112: 23.2813585 | D112: 8.164178142 | E112: 4.058101491 | F112: 2.545669494 | G112: 1.865104294 | H112: 1.515586443 | I112: 1.319658513 | J112: 1.203253625 | K112: 1.131369158 | L112: 1.085820613
B113: 113 | C113: 23.41932019 | D113: 8.196303813 | E113: 4.068708685 | F113: 2.550090461 | G113: 1.867256697 | H113: 1.516748835 | I113: 1.320331206 | J113: 1.203661304 | K113: 1.131623951 | L113: 1.085983158
B114: 114 | C114: 23.55687672 | D114: 8.228272863 | E114: 4.079250611 | F114: 2.554480512 | G114: 1.869392866 | H114: 1.517902045 | I114: 1.320998431 | J114: 1.20406561 | K114: 1.131876614 | L114: 1.086144337
B115: 115 | C115: =(POWER(B115,2)*SQRT(C114))/(B115*C114) -> 23.69403282 | D115: 8.260087411 | E115: 4.089728233 | F115: 2.558840127 | G115: 1.87151306 | H115: 1.519046223 | I115: 1.32166028 | J115: 1.204466601 | K115: 1.132127184 | L115: 1.086304172
B116: 116 | C116: 23.83079311 | D116: 8.291749529 | E116: 4.100142492 | F116: 2.563169778 | G116: 1.873617536 | H116: 1.520181517 | I116: 1.32231684 | J116: 1.204864332 | K116: 1.132375694 | L116: 1.086462685
B117: 117 | C117: 23.96716212 | D117: 8.323261245 | E117: 4.110494308 | F117: 2.567469921 | G117: 1.875706542 | H117: 1.52130807 | I117: 1.322968198 | J117: 1.205258855 | K117: 1.132622178 | L117: 1.086619899
B118: 118 | C118: 24.10314428 | D118: 8.354624542 | E118: 4.120784581 | F118: 2.571741006 | G118: 1.87778032 | H118: 1.522426022 | I118: 1.323614439 | J118: 1.205650223 | K118: 1.132866671 | L118: 1.086775835
B119: 119 | C119: 24.23874396 | D119: 8.385841362 | E119: 4.131014187 | F119: 2.575983469 | G119: 1.879839107 | H119: 1.523535509 | I119: 1.324255645 | J119: 1.206038488 | K119: 1.133109204 | L119: 1.086930513
B120: 120 | C120: 24.37396541 | D120: 8.416913602 | E120: 4.141183987 | F120: 2.580197738 | G120: 1.881883134 | H120: 1.524636665 | I120: 1.324891895 | J120: 1.206423698 | K120: 1.133349809 | L120: 1.087083954
B121: 121 | C121: 24.50881282 | D121: 8.447843124 | E121: 4.151294819 | F121: 2.58438423 | G121: 1.883912628 | H121: 1.52572962 | I121: 1.325523268 | J121: 1.206805904 | K121: 1.133588517 | L121: 1.087236178
B122: 122 | C122: 24.6432903 | D122: 8.478631747 | E122: 4.161347504 | F122: 2.588543353 | G122: 1.885927809 | H122: 1.5268145 | I122: 1.326149842 | J122: 1.207185151 | K122: 1.133825358 | L122: 1.087387204
B123: 123 | C123: 24.77740187 | D123: 8.509281253 | E123: 4.171342846 | F123: 2.592675506 | G123: 1.887928891 | H123: 1.527891429 | I123: 1.326771689 | J123: 1.207561487 | K123: 1.134060361 | L123: 1.087537051
B124: 124 | C124: 24.91115149 | D124: 8.539793389 | E124: 4.181281629 | F124: 2.596781078 | G124: 1.889916087 | H124: 1.52896053 | I124: 1.327388884 | J124: 1.207934957 | K124: 1.134293554 | L124: 1.087685737
B125: 125 | C125: 25.04454302 | D125: 8.570169864 | E125: 4.191164624 | F125: 2.600860451 | G125: 1.8918896 | H125: 1.53002192 | I125: 1.328001497 | J125: 1.208305604 | K125: 1.134524967 | L125: 1.08783328
B126: 126 | C126: 25.17758027 | D126: 8.600412354 | E126: 4.20099258 | F126: 2.604913996 | G126: 1.893849633 | H126: 1.531075714 | I126: 1.328609598 | J126: 1.208673473 | K126: 1.134754626 | L126: 1.087979698
B127: 127 | C127: 25.31026698 | D127: 8.6305225 | E127: 4.210766236 | F127: 2.608942078 | G127: 1.895796382 | H127: 1.532122027 | I127: 1.329213255 | J127: 1.209038605 | K127: 1.134982557 | L127: 1.088125008
B128: 128 | C128: 25.44260682 | D128: 8.660501912 | E128: 4.220486311 | F128: 2.612945054 | G128: 1.89773004 | H128: 1.533160967 | I128: 1.329812535 | J128: 1.209401041 | K128: 1.135208788 | L128: 1.088269227
B129: 129 | C129: 25.57460337 | D129: 8.690352167 | E129: 4.230153511 | F129: 2.616923273 | G129: 1.899650793 | H129: 1.534192645 | I129: 1.330407502 | J129: 1.209760823 | K129: 1.135433344 | L129: 1.088412371
B130: =ROW(A130) -> 130 | C130: 25.70626018 | D130: 8.720074809 | E130: 4.239768527 | F130: 2.620877075 | G130: 1.901558827 | H130: 1.535217164 | I130: 1.33099822 | J130: 1.210117988 | K130: 1.135656248 | L130: 1.088554456
B131: 131 | C131: =(POWER(B131,2)*SQRT(C130))/(B131*C130) -> 25.83758071 | D131: 8.749671356 | E131: 4.249332037 | F131: 2.624806794 | G131: 1.90345432 | H131: 1.536234628 | I131: 1.331584751 | J131: 1.210472576 | K131: 1.135877527 | L131: 1.088695499
B132: 132 | C132: 25.96856838 | D132: 8.779143293 | E132: 4.258844702 | F132: 2.628712759 | G132: 1.905337449 | H132: 1.537245139 | I132: 1.332167156 | J132: 1.210824624 | K132: 1.136097204 | L132: 1.088835513
B133: 133 | C133: 26.09922653 | D133: 8.808492079 | E133: 4.268307172 | F133: 2.632595288 | G133: 1.907208387 | H133: 1.538248795 | I133: 1.332745493 | J133: 1.21117417 | K133: 1.136315302 | L133: 1.088974515
B134: 134 | C134: 26.22955846 | D134: 8.837719143 | E134: 4.277720084 | F134: 2.636454696 | G134: 1.909067301 | H134: 1.539245693 | I134: 1.333319823 | J134: 1.211521249 | K134: 1.136531843 | L134: 1.089112519
B135: 135 | C135: 26.3595674 | D135: 8.866825889 | E135: 4.287084061 | F135: 2.640291289 | G135: 1.910914357 | H135: 1.540235928 | I135: 1.3338902 | J135: 1.211865896 | K135: 1.136746851 | L135: 1.089249539
B136: 136 | C136: 26.48925652 | D136: 8.895813693 | E136: 4.296399716 | F136: 2.644105367 | G136: 1.912749716 | H136: 1.541219592 | I136: 1.334456681 | J136: 1.212208147 | K136: 1.136960347 | L136: 1.089385589
B137: 137 | C137: 26.61862896 | D137: 8.924683906 | E137: 4.305667646 | F137: 2.647897227 | G137: 1.914573536 | H137: 1.542196777 | I137: 1.335019321 | J137: 1.212548034 | K137: 1.137172353 | L137: 1.089520684
B138: 138 | C138: 26.74768778 | D138: 8.953437854 | E138: 4.31488844 | F138: 2.651667155 | G138: 1.916385973 | H138: 1.54316757 | I138: 1.335578172 | J138: 1.212885591 | K138: 1.137382889 | L138: 1.089654836
B139: 139 | C139: 26.876436 | D139: 8.982076838 | E139: 4.324062674 | F139: 2.655415436 | G139: 1.918187178 | H139: 1.544132059 | I139: 1.336133287 | J139: 1.21322085 | K139: 1.137591976 | L139: 1.089788059
B140: 140 | C140: 27.00487658 | D140: 9.010602137 | E140: 4.333190914 | F140: 2.659142346 | G140: 1.919977301 | H140: 1.545090329 | I140: 1.336684717 | J140: 1.213553843 | K140: 1.137799634 | L140: 1.089920365
B141: 141 | C141: 27.13301246 | D141: 9.039015005 | E141: 4.342273712 | F141: 2.662848157 | G141: 1.921756485 | H141: 1.546042464 | I141: 1.337232512 | J141: 1.213884601 | K141: 1.138005883 | L141: 1.090051768
B142: 142 | C142: 27.26084649 | D142: 9.067316673 | E142: 4.351311614 | F142: 2.666533135 | G142: 1.923524875 | H142: 1.546988545 | I142: 1.337776721 | J142: 1.214213154 | K142: 1.138210742 | L142: 1.090182279
B143: 143 | C143: 27.38838151 | D143: 9.095508353 | E143: 4.360305153 | F143: 2.670197542 | G143: 1.925282611 | H143: 1.547928653 | I143: 1.338317393 | J143: 1.214539532 | K143: 1.138414229 | L143: 1.090311911
B144: 144 | C144: 27.51562029 | D144: 9.123591232 | E144: 4.369254851 | F144: 2.673841633 | G144: 1.927029828 | H144: 1.548862865 | I144: 1.338854573 | J144: 1.214863765 | K144: 1.138616364 | L144: 1.090440675
B145: 145 | C145: 27.64256557 | D145: 9.151566478 | E145: 4.378161224 | F145: 2.677465661 | G145: 1.928766663 | H145: 1.54979126 | I145: 1.33938831 | J145: 1.21518588 | K145: 1.138817164 | L145: 1.090568584
B146: 146 | C146: 27.76922003 | D146: 9.179435238 | E146: 4.387024775 | F146: 2.681069871 | G146: 1.930493247 | H146: 1.550713912 | I146: 1.339918647 | J146: 1.215505907 | K146: 1.139016647 | L146: 1.090695648
